Workbook

Sheet 160508-1021-1000,0min,56kN
A1: Nr. | B1: Datum | C1: Zeit | D1: P.Zeit | E1: MTC1 | F1: MTC2 | G1: MTC3 | H1: MTC4 | I1: Pyrometer | J1: AV Abs. Press. 1 | K1: AV Abs. Press. 2 | L1: AV Rel. Pressure | M1: Thermovak | N1: CZ_Temperature c | O1: yPower | P1: SV Temperature | Q1: SV Power | R1: SV Force | S1: SV Speed | T1: AV Force | U1: AV Speed | W1: SV Rel. pressure | X1: SV Abs. pressure | Y1: Vac. Main Valve | Z1: Put On Force | AA1: Pyro Start Temp. | AB1: I RMS | AC1: Pulse Time | AD1: Pause Time | AE1: U RMS | AF1: Heating power | AG1: Rel. Piston Trav | AH1: Abs. Piston Trav
E2: C | F2: C | G2: C | H2: C | I2: C | J2: mbar | K2: mbar | L2: mbar | M2: mbar | N2: % | O2: % | P2: C | Q2: % | R2: kN | S2: mm/min | T2: kN | U2: mm/min | W2: hPa | X2: hPa | Y2: hPa | Z2: kN | AA2: C | AB2: kA | AC2: ms | AD2: ms | AE2: V | AF2: kW | AG2: mm | AH2: mm
A3: 1 | B3: 2008-05-16 | C3: 12:59:54 | D3: 00:00:00 | E3: 21 | F3: 22 | G3: 24 | H3: 24 | I3: 400 | J3: 13.3 | K3: 1034 | L3: 42 | M3: 1687 | N3: 100 | O3: 0 | P3: 20 | Q3: 0 | R3: 5 | S3: 30 | T3: -1 | U3: 0 | V3: =U3/60 -> 0 | W3: 5 | X3: 0.01 | Y3: 100 | Z3: 3 | AA3: 20 | AB3: 0.04 | AC3: 0 | AD3: 0 | AE3: 0.05 | AF3: 0 | AG3: 0 | AH3: 37.43
A4: 2 | B4: 2008-05-16 | C4: 12:59:55 | D4: 00:00:01 | E4: 21 | F4: 22 | G4: 24 | H4: 24 | I4: 400 | J4: 13.3 | K4: 1034 | L4: 42 | M4: 1687 | N4: 100 | O4: 0 | P4: 20 | Q4: 0 | R4: 5 | S4: 30 | T4: -1 | U4: 0 | V4: =U4/60 -> 0 | W4: 5 | X4: 0.01 | Y4: 100 | Z4: 3 | AA4: 20 | AB4: 0.04 | AC4: 0 | AD4: 0 | AE4: 0.05 | AF4: 0 | AG4: 0 | AH4: 37.43
A5: 3 | B5: 2008-05-16 | C5: 12:59:56 | D5: 00:00:02 | E5: 21 | F5: 22 | G5: 24 | H5: 24 | I5: 400 | J5: 13.3 | K5: 1034 | L5: 42 | M5: 1687 | N5: 100 | O5: 0 | P5: 20 | Q5: 0 | R5: 5 | S5: 30 | T5: 1 | U5: 0 | V5: 0 | W5: 5 | X5: 0.01 | Y5: 100 | Z5: 3 | AA5: 20 | AB5: 0.04 | AC5: 0 | AD5: 0 | AE5: 0.02 | AF5: 0 | AG5: 0 | AH5: 37.66
A6: 4 | B6: 2008-05-16 | C6: 12:59:57 | D6: 00:00:03 | E6: 21 | F6: 22 | G6: 24 | H6: 24 | I6: 400 | J6: 13.3 | K6: 1034 | L6: 42 | M6: 1687 | N6: 100 | O6: 0 | P6: 20 | Q6: 0 | R6: 5 | S6: 30 | T6: 1 | U6: 0 | V6: 0 | W6: 5 | X6: 0.01 | Y6: 100 | Z6: 3 | AA6: 20 | AB6: 0.04 | AC6: 0 | AD6: 0 | AE6: 0 | AF6: 0 | AG6: 0 | AH6: 38.14
A7: 5 | B7: 2008-05-16 | C7: 12:59:58 | D7: 00:00:04 | E7: 21 | F7: 22 | G7: 24 | H7: 24 | I7: 400 | J7: 13.3 | K7: 920 | L7: -17 | M7: 1687 | N7: 100 | O7: 0 | P7: 20 | Q7: 0 | R7: 5 | S7: 30 | T7: 5 | U7: 18.67 | V7: 0.3111666667 | W7: 5 | X7: 0.01 | Y7: 100 | Z7: 3 | AA7: 20 | AB7: 0.04 | AC7: 0 | AD7: 0 | AE7: 0 | AF7: 0 | AG7: 0.19 | AH7: 38.62
A8: 6 | B8: 2008-05-16 | C8: 12:59:59 | D8: 00:00:05 | E8: 21 | F8: 22 | G8: 24 | H8: 24 | I8: 400 | J8: 13.3 | K8: 669 | L8: -999 | M8: 1687 | N8: 100 | O8: 0 | P8: 20 | Q8: 0 | R8: 5 | S8: 30 | T8: 5 | U8: 18.67 | V8: 0.3111666667 | W8: 5 | X8: 0.01 | Y8: 100 | Z8: 3 | AA8: 20 | AB8: 0.04 | AC8: 0 | AD8: 0 | AE8: 0 | AF8: 0 | AG8: 0.19 | AH8: 38.62
A9: 7 | B9: 2008-05-16 | C9: 13:00:00 | D9: 00:00:06 | E9: 21 | F9: 22 | G9: 24 | H9: 25 | I9: 400 | J9: 13.3 | K9: 669 | L9: -999 | M9: 1687 | N9: 100 | O9: 0 | P9: 20 | Q9: 0 | R9: 5 | S9: 30 | T9: 5 | U9: 18.67 | V9: 0.3111666667 | W9: 5 | X9: 0.01 | Y9: 100 | Z9: 3 | AA9: 20 | AB9: 0.04 | AC9: 0 | AD9: 0 | AE9: 0 | AF9: 0 | AG9: 0.19 | AH9: 38.62
A10: 8 | B10: 2008-05-16 | C10: 13:00:01 | D10: 00:00:07 | E10: 21 | F10: 22 | G10: 24 | H10: 25 | I10: 400 | J10: 13.3 | K10: 517 | L10: -999 | M10: 1687 | N10: 100 | O10: 0 | P10: 20 | Q10: 0 | R10: 5 | S10: 30 | T10: 4 | U10: 2.2 | V10: 0.03666666667 | W10: 5 | X10: 0.01 | Y10: 100 | Z10: 3 | AA10: 20 | AB10: 0.04 | AC10: 0 | AD10: 0 | AE10: 0 | AF10: 0 | AG10: 0.19 | AH10: 38.62
A11: 9 | B11: 2008-05-16 | C11: 13:00:02 | D11: 00:00:08 | E11: 21 | F11: 22 | G11: 24 | H11: 25 | I11: 400 | J11: 13.3 | K11: 406 | L11: -999 | M11: 1563 | N11: 100 | O11: 0 | P11: 20 | Q11: 0 | R11: 5 | S11: 30 | T11: 4 | U11: 2.2 | V11: 0.03666666667 | W11: 5 | X11: 0.01 | Y11: 100 | Z11: 3 | AA11: 20 | AB11: 0.04 | AC11: 0 | AD11: 0 | AE11: 0 | AF11: 0 | AG11: 0.2 | AH11: 38.63
A12: 10 | B12: 2008-05-16 | C12: 13:00:03 | D12: 00:00:09 | E12: 21 | F12: 22 | G12: 24 | H12: 25 | I12: 400 | J12: 13.3 | K12: 406 | L12: -999 | M12: 1235 | N12: 100 | O12: 0 | P12: 20 | Q12: 0 | R12: 5 | S12: 30 | T12: 5 | U12: 2.2 | V12: 0.03666666667 | W12: 5 | X12: 0.01 | Y12: 100 | Z12: 3 | AA12: 20 | AB12: 0.04 | AC12: 0 | AD12: 0 | AE12: 0 | AF12: 0 | AG12: 0.2 | AH12: 38.63
A13: 11 | B13: 2008-05-16 | C13: 13:00:04 | D13: 00:00:10 | E13: 21 | F13: 22 | G13: 24 | H13: 25 | I13: 400 | J13: 13.3 | K13: 325 | L13: -999 | M13: 987 | N13: 100 | O13: 0 | P13: 20 | Q13: 0 | R13: 5 | S13: 30 | T13: 4 | U13: 2.2 | V13: 0.03666666667 | W13: 5 | X13: 0.01 | Y13: 100 | Z13: 3 | AA13: 20 | AB13: 0.04 | AC13: 0 | AD13: 0 | AE13: 0 | AF13: 0 | AG13: 0.2 | AH13: 38.63
A14: 12 | B14: 2008-05-16 | C14: 13:00:05 | D14: 00:00:11 | E14: 21 | F14: 22 | G14: 24 | H14: 25 | I14: 400 | J14: 13.3 | K14: 254 | L14: -999 | M14: 889 | N14: 100 | O14: 0 | P14: 20 | Q14: 0 | R14: 5 | S14: 30 | T14: 4 | U14: 0.07 | V14: 0.001166666667 | W14: 5 | X14: 0.01 | Y14: 100 | Z14: 3 | AA14: 20 | AB14: 0.04 | AC14: 0 | AD14: 0 | AE14: 0 | AF14: 0 | AG14: 0.2 | AH14: 38.63
A15: 13 | B15: 2008-05-16 | C15: 13:00:06 | D15: 00:00:12 | E15: 21 | F15: 22 | G15: 24 | H15: 25 | I15: 400 | J15: 13.3 | K15: 254 | L15: -999 | M15: 620 | N15: 100 | O15: 0 | P15: 20 | Q15: 0 | R15: 5 | S15: 30 | T15: 5 | U15: 0.07 | V15: 0.001166666667 | W15: 5 | X15: 0.01 | Y15: 100 | Z15: 3 | AA15: 20 | AB15: 0.04 | AC15: 0 | AD15: 0 | AE15: 0 | AF15: 0 | AG15: 0.2 | AH15: 38.63
A16: 14 | B16: 2008-05-16 | C16: 13:00:07 | D16: 00:00:13 | E16: 21 | F16: 22 | G16: 24 | H16: 25 | I16: 400 | J16: 13.3 | K16: 190 | L16: -999 | M16: 431 | N16: 100 | O16: 0 | P16: 20 | Q16: 0 | R16: 5 | S16: 30 | T16: 5 | U16: 0.07 | V16: 0.001166666667 | W16: 5 | X16: 0.01 | Y16: 100 | Z16: 3 | AA16: 20 | AB16: 0.04 | AC16: 0 | AD16: 0 | AE16: 0 | AF16: 0 | AG16: 0.2 | AH16: 38.63
A17: 15 | B17: 2008-05-16 | C17: 13:00:08 | D17: 00:00:14 | E17: 21 | F17: 22 | G17: 24 | H17: 25 | I17: 400 | J17: 13.3 | K17: 141 | L17: -999 | M17: 288 | N17: 100 | O17: 0 | P17: 20 | Q17: 0 | R17: 5 | S17: 30 | T17: 5 | U17: 0.04 | V17: 0.0006666666667 | W17: 5 | X17: 0.01 | Y17: 100 | Z17: 3 | AA17: 20 | AB17: 0.04 | AC17: 0 | AD17: 0 | AE17: 0 | AF17: 0 | AG17: 0.2 | AH17: 38.63
A18: 16 | B18: 2008-05-16 | C18: 13:00:09 | D18: 00:00:15 | E18: 21 | F18: 21 | G18: 24 | H18: 25 | I18: 400 | J18: 13.3 | K18: 141 | L18: -999 | M18: 167 | N18: 100 | O18: 0 | P18: 20 | Q18: 0 | R18: 5 | S18: 30 | T18: 4 | U18: 0.04 | V18: 0.0006666666667 | W18: 5 | X18: 0.01 | Y18: 100 | Z18: 3 | AA18: 20 | AB18: 0.04 | AC18: 0 | AD18: 0 | AE18: 0 | AF18: 0 | AG18: 0.2 | AH18: 38.63
A19: 17 | B19: 2008-05-16 | C19: 13:00:10 | D19: 00:00:16 | E19: 21 | F19: 21 | G19: 24 | H19: 25 | I19: 400 | J19: 13.3 | K19: 101 | L19: -999 | M19: 128 | N19: 100 | O19: 0 | P19: 20 | Q19: 0 | R19: 5 | S19: 30 | T19: 5 | U19: 0.04 | V19: 0.0006666666667 | W19: 5 | X19: 0.01 | Y19: 100 | Z19: 3 | AA19: 20 | AB19: 0.04 | AC19: 0 | AD19: 0 | AE19: 0 | AF19: 0 | AG19: 0.2 | AH19: 38.63
A20: 18 | B20: 2008-05-16 | C20: 13:00:11 | D20: 00:00:17 | E20: 21 | F20: 21 | G20: 24 | H20: 25 | I20: 400 | J20: 13.3 | K20: 75 | L20: -999 | M20: 104 | N20: 100 | O20: 0 | P20: 20 | Q20: 0 | R20: 5 | S20: 30 | T20: 5 | U20: 0.04 | V20: 0.0006666666667 | W20: 5 | X20: 0.01 | Y20: 100 | Z20: 3 | AA20: 20 | AB20: 0.04 | AC20: 0 | AD20: 0 | AE20: 0 | AF20: 0 | AG20: 0.21 | AH20: 38.64
A21: 19 | B21: 2008-05-16 | C21: 13:00:12 | D21: 00:00:18 | E21: 21 | F21: 21 | G21: 24 | H21: 25 | I21: 400 | J21: 13.3 | K21: 75 | L21: -999 | M21: 84 | N21: 100 | O21: 0 | P21: 20 | Q21: 0 | R21: 5 | S21: 30 | T21: 5 | U21: 0.07 | V21: 0.001166666667 | W21: 5 | X21: 0.01 | Y21: 100 | Z21: 3 | AA21: 20 | AB21: 0.04 | AC21: 0 | AD21: 0 | AE21: 0 | AF21: 0 | AG21: 0.21 | AH21: 38.64
A22: 20 | B22: 2008-05-16 | C22: 13:00:13 | D22: 00:00:19 | E22: 21 | F22: 21 | G22: 24 | H22: 25 | I22: 400 | J22: 13.3 | K22: 56 | L22: -999 | M22: 63 | N22: 100 | O22: 0 | P22: 20 | Q22: 0 | R22: 5 | S22: 30 | T22: 5 | U22: 0.07 | V22: 0.001166666667 | W22: 5 | X22: 0.01 | Y22: 100 | Z22: 3 | AA22: 20 | AB22: 0.04 | AC22: 0 | AD22: 0 | AE22: 0 | AF22: 0 | AG22: 0.21 | AH22: 38.64
A23: 21 | B23: 2008-05-16 | C23: 13:00:14 | D23: 00:00:20 | E23: 21 | F23: 21 | G23: 24 | H23: 25 | I23: 400 | J23: 13.3 | K23: 42 | L23: -999 | M23: 46 | N23: 100 | O23: 0 | P23: 20 | Q23: 0 | R23: 5 | S23: 30 | T23: 5 | U23: 0.07 | V23: 0.001166666667 | W23: 5 | X23: 0.01 | Y23: 100 | Z23: 3 | AA23: 20 | AB23: 0.04 | AC23: 0 | AD23: 0 | AE23: 0 | AF23: 0 | AG23: 0.21 | AH23: 38.64
A24: 22 | B24: 2008-05-16 | C24: 13:00:15 | D24: 00:00:21 | E24: 21 | F24: 21 | G24: 24 | H24: 25 | I24: 400 | J24: 13.3 | K24: 42 | L24: -999 | M24: 32 | N24: 100 | O24: 0 | P24: 20 | Q24: 0 | R24: 5 | S24: 30 | T24: 4 | U24: 0.05 | V24: 0.0008333333333 | W24: 5 | X24: 0.01 | Y24: 100 | Z24: 3 | AA24: 20 | AB24: 0.04 | AC24: 0 | AD24: 0 | AE24: 0 | AF24: 0 | AG24: 0.21 | AH24: 38.64
A25: 23 | B25: 2008-05-16 | C25: 13:00:16 | D25: 00:00:22 | E25: 21 | F25: 21 | G25: 24 | H25: 25 | I25: 400 | J25: 13.3 | K25: 32 | L25: -999 | M25: 27 | N25: 100 | O25: 0 | P25: 20 | Q25: 0 | R25: 5 | S25: 30 | T25: 5 | U25: 0.05 | V25: 0.0008333333333 | W25: 5 | X25: 0.01 | Y25: 100 | Z25: 3 | AA25: 20 | AB25: 0.04 | AC25: 0 | AD25: 0 | AE25: 0 | AF25: 0 | AG25: 0.21 | AH25: 38.64
A26: 24 | B26: 2008-05-16 | C26: 13:00:17 | D26: 00:00:23 | E26: 21 | F26: 21 | G26: 24 | H26: 25 | I26: 400 | J26: 13.3 | K26: 24 | L26: -999 | M26: 21 | N26: 100 | O26: 0 | P26: 20 | Q26: 0 | R26: 5 | S26: 30 | T26: 4 | U26: 0.05 | V26: 0.0008333333333 | W26: 5 | X26: 0.01 | Y26: 100 | Z26: 3 | AA26: 20 | AB26: 0.05 | AC26: 0 | AD26: 0 | AE26: 0 | AF26: 0 | AG26: 0.21 | AH26: 38.64
A27: 25 | B27: 2008-05-16 | C27: 13:00:18 | D27: 00:00:24 | E27: 21 | F27: 21 | G27: 24 | H27: 25 | I27: 400 | J27: 13.16 | K27: 17 | L27: -999 | M27: 16 | N27: 100 | O27: 0 | P27: 20 | Q27: 0 | R27: 5 | S27: 30 | T27: 5 | U27: 0.02 | V27: 0.0003333333333 | W27: 5 | X27: 0.01 | Y27: 100 | Z27: 3 | AA27: 20 | AB27: 0.05 | AC27: 0 | AD27: 0 | AE27: 0 | AF27: 0 | AG27: 0.21 | AH27: 38.64
A28: 26 | B28: 2008-05-16 | C28: 13:00:19 | D28: 00:00:25 | E28: 21 | F28: 21 | G28: 24 | H28: 25 | I28: 400 | J28: 13.16 | K28: 17 | L28: -999 | M28: 12 | N28: 100 | O28: 0 | P28: 20 | Q28: 0 | R28: 5 | S28: 30 | T28: 5 | U28: 0.02 | V28: 0.0003333333333 | W28: 5 | X28: 0.01 | Y28: 100 | Z28: 3 | AA28: 20 | AB28: 0.04 | AC28: 0 | AD28: 0 | AE28: 0 | AF28: 0 | AG28: 0.21 | AH28: 38.64
A29: 27 | B29: 2008-05-16 | C29: 13:00:20 | D29: 00:00:26 | E29: 21 | F29: 21 | G29: 24 | H29: 25 | I29: 400 | J29: 8.82 | K29: 13 | L29: -999 | M29: 9 | N29: 100 | O29: 0 | P29: 20 | Q29: 0 | R29: 5 | S29: 30 | T29: 5 | U29: 0.02 | V29: 0.0003333333333 | W29: 5 | X29: 0.01 | Y29: 100 | Z29: 3 | AA29: 20 | AB29: 0.04 | AC29: 0 | AD29: 0 | AE29: 0 | AF29: 0 | AG29: 0.21 | AH29: 38.64
A30: 28 | B30: 2008-05-16 | C30: 13:00:21 | D30: 00:00:27 | E30: 21 | F30: 20 | G30: 24 | H30: 25 | I30: 400 | J30: 6.07 | K30: 10 | L30: -999 | M30: 6 | N30: 100 | O30: 0 | P30: 20 | Q30: 0 | R30: 5 | S30: 30 | T30: 5 | U30: 0.02 | V30: 0.0003333333333 | W30: 5 | X30: 0.01 | Y30: 100 | Z30: 3 | AA30: 20 | AB30: 0.04 | AC30: 0 | AD30: 0 | AE30: 0 | AF30: 0 | AG30: 0.21 | AH30: 38.64
A31: 29 | B31: 2008-05-16 | C31: 13:00:22 | D31: 00:00:28 | E31: 21 | F31: 20 | G31: 24 | H31: 25 | I31: 400 | J31: 6.07 | K31: 10 | L31: -999 | M31: 5 | N31: 100 | O31: 0 | P31: 20 | Q31: 0 | R31: 5 | S31: 30 | T31: 5 | U31: 0.05 | V31: 0.0008333333333 | W31: 5 | X31: 0.01 | Y31: 100 | Z31: 3 | AA31: 20 | AB31: 0.04 | AC31: 0 | AD31: 0 | AE31: 0 | AF31: 0 | AG31: 0.21 | AH31: 38.64
A32: 30 | B32: 2008-05-16 | C32: 13:00:23 | D32: 00:00:29 | E32: 21 | F32: 20 | G32: 24 | H32: 25 | I32: 400 | J32: 4.2 | K32: 8 | L32: -999 | M32: 4 | N32: 100 | O32: 0 | P32: 20 | Q32: 0 | R32: 5 | S32: 30 | T32: 4 | U32: 0.05 | V32: 0.0008333333333 | W32: 5 | X32: 0.01 | Y32: 100 | Z32: 3 | AA32: 20 | AB32: 0.05 | AC32: 0 | AD32: 0 | AE32: 0 | AF32: 0 | AG32: 0.21 | AH32: 38.64
A33: 31 | B33: 2008-05-16 | C33: 13:00:24 | D33: 00:00:30 | E33: 21 | F33: 20 | G33: 24 | H33: 25 | I33: 400 | J33: 2.97 | K33: 7 | L33: -999 | M33: 3 | N33: 100 | O33: 0 | P33: 20 | Q33: 0 | R33: 5 | S33: 30 | T33: 5 | U33: 0.05 | V33: 0.0008333333333 | W33: 5 | X33: 0.01 | Y33: 100 | Z33: 3 | AA33: 20 | AB33: 0.04 | AC33: 0 | AD33: 0 | AE33: 0 | AF33: 0 | AG33: 0.21 | AH33: 38.64
A34: 32 | B34: 2008-05-16 | C34: 13:00:25 | D34: 00:00:31 | E34: 21 | F34: 20 | G34: 24 | H34: 25 | I34: 400 | J34: 2.15 | K34: 7 | L34: -999 | M34: 2 | N34: 100 | O34: 0 | P34: 20 | Q34: 0 | R34: 5 | S34: 30 | T34: 4 | U34: 0.02 | V34: 0.0003333333333 | W34: 5 | X34: 0.01 | Y34: 100 | Z34: 3 | AA34: 20 | AB34: 0.04 | AC34: 0 | AD34: 0 | AE34: 0 | AF34: 0 | AG34: 0.21 | AH34: 38.64
A35: 33 | B35: 2008-05-16 | C35: 13:00:26 | D35: 00:00:32 | E35: 21 | F35: 20 | G35: 24 | H35: 25 | I35: 400 | J35: 2.15 | K35: 6 | L35: -999 | M35: 2 | N35: 100 | O35: 0 | P35: 20 | Q35: 0 | R35: 5 | S35: 30 | T35: 5 | U35: 0.02 | V35: 0.0003333333333 | W35: 5 | X35: 0.01 | Y35: 100 | Z35: 3 | AA35: 20 | AB35: 0.04 | AC35: 0 | AD35: 0 | AE35: 0 | AF35: 0 | AG35: 0.21 | AH35: 38.64
A36: 34 | B36: 2008-05-16 | C36: 13:00:27 | D36: 00:00:33 | E36: 21 | F36: 20 | G36: 24 | H36: 25 | I36: 400 | J36: 1.59 | K36: 6 | L36: -999 | M36: 2 | N36: 100 | O36: 0 | P36: 20 | Q36: 0 | R36: 5 | S36: 30 | T36: 5 | U36: 0.02 | V36: 0.0003333333333 | W36: 5 | X36: 0.01 | Y36: 100 | Z36: 3 | AA36: 20 | AB36: 0.04 | AC36: 0 | AD36: 0 | AE36: 0 | AF36: 0 | AG36: 0.21 | AH36: 38.64
A37: 35 | B37: 2008-05-16 | C37: 13:00:28 | D37: 00:00:34 | E37: 21 | F37: 20 | G37: 24 | H37: 25 | I37: 400 | J37: 1.21 | K37: 5 | L37: -999 | M37: 1 | N37: 100 | O37: 0 | P37: 20 | Q37: 0 | R37: 5 | S37: 30 | T37: 5 | U37: 0.04 | V37: 0.0006666666667 | W37: 5 | X37: 0.01 | Y37: 100 | Z37: 3 | AA37: 20 | AB37: 0.04 | AC37: 0 | AD37: 0 | AE37: 0 | AF37: 0 | AG37: 0.22 | AH37: 38.65
A38: 36 | B38: 2008-05-16 | C38: 13:00:29 | D38: 00:00:35 | E38: 21 | F38: 20 | G38: 24 | H38: 25 | I38: 400 | J38: 1.21 | K38: 5 | L38: -999 | M38: 1 | N38: 100 | O38: 0 | P38: 20 | Q38: 0 | R38: 5 | S38: 30 | T38: 4 | U38: 0.04 | V38: 0.0006666666667 | W38: 5 | X38: 0.01 | Y38: 100 | Z38: 3 | AA38: 20 | AB38: 0.04 | AC38: 0 | AD38: 0 | AE38: 0 | AF38: 0 | AG38: 0.22 | AH38: 38.65
A39: 37 | B39: 2008-05-16 | C39: 13:00:30 | D39: 00:00:36 | E39: 21 | F39: 20 | G39: 24 | H39: 25 | I39: 400 | J39: 0.94 | K39: 5 | L39: -999 | M39: 1 | N39: 100 | O39: 0 | P39: 20 | Q39: 0 | R39: 5 | S39: 30 | T39: 5 | U39: 0.04 | V39: 0.0006666666667 | W39: 5 | X39: 0.01 | Y39: 100 | Z39: 3 | AA39: 20 | AB39: 0.05 | AC39: 0 | AD39: 0 | AE39: 0 | AF39: 0 | AG39: 0.22 | AH39: 38.65
A40: 38 | B40: 2008-05-16 | C40: 13:00:31 | D40: 00:00:37 | E40: 21 | F40: 20 | G40: 24 | H40: 25 | I40: 400 | J40: 0.75 | K40: 5 | L40: -999 | M40: 1 | N40: 100 | O40: 0 | P40: 20 | Q40: 0 | R40: 5 | S40: 30 | T40: 5 | U40: 0.04 | V40: 0.0006666666667 | W40: 5 | X40: 0.01 | Y40: 100 | Z40: 3 | AA40: 20 | AB40: 0.04 | AC40: 0 | AD40: 0 | AE40: 0 | AF40: 0 | AG40: 0.22 | AH40: 38.65
A41: 39 | B41: 2008-05-16 | C41: 13:00:32 | D41: 00:00:38 | E41: 21 | F41: 20 | G41: 24 | H41: 25 | I41: 400 | J41: 0.75 | K41: 5 | L41: -999 | M41: 1 | N41: 100 | O41: 0 | P41: 20 | Q41: 0 | R41: 5 | S41: 30 | T41: 4 | U41: 0.02 | V41: 0.0003333333333 | W41: 5 | X41: 0.01 | Y41: 100 | Z41: 3 | AA41: 20 | AB41: 0.04 | AC41: 0 | AD41: 0 | AE41: 0 | AF41: 0 | AG41: 0.22 | AH41: 38.65
A42: 40 | B42: 2008-05-16 | C42: 13:00:33 | D42: 00:00:39 | E42: 21 | F42: 20 | G42: 24 | H42: 25 | I42: 400 | J42: 0.62 | K42: 5 | L42: -999 | M42: 1 | N42: 100 | O42: 0 | P42: 20 | Q42: 0 | R42: 5 | S42: 30 | T42: 5 | U42: 0.02 | V42: 0.0003333333333 | W42: 5 | X42: 0.01 | Y42: 100 | Z42: 3 | AA42: 20 | AB42: 0.04 | AC42: 0 | AD42: 0 | AE42: 0 | AF42: 0 | AG42: 0.22 | AH42: 38.65
A43: 41 | B43: 2008-05-16 | C43: 13:00:34 | D43: 00:00:40 | E43: 21 | F43: 20 | G43: 24 | H43: 25 | I43: 400 | J43: 0.51 | K43: 5 | L43: -999 | M43: 1 | N43: 100 | O43: 0 | P43: 20 | Q43: 0 | R43: 5 | S43: 30 | T43: 5 | U43: 0.02 | V43: 0.0003333333333 | W43: 5 | X43: 0.01 | Y43: 100 | Z43: 3 | AA43: 20 | AB43: 0.04 | AC43: 0 | AD43: 0 | AE43: 0 | AF43: 0 | AG43: 0.22 | AH43: 38.65
A44: 42 | B44: 2008-05-16 | C44: 13:00:35 | D44: 00:00:41 | E44: 21 | F44: 20 | G44: 24 | H44: 25 | I44: 400 | J44: 0.51 | K44: 5 | L44: -999 | M44: 1 | N44: 100 | O44: 0 | P44: 20 | Q44: 0 | R44: 5 | S44: 30 | T44: 5 | U44: 0.02 | V44: 0.0003333333333 | W44: 5 | X44: 0.01 | Y44: 100 | Z44: 3 | AA44: 20 | AB44: 0.04 | AC44: 0 | AD44: 0 | AE44: 0 | AF44: 0 | AG44: 0.22 | AH44: 38.65
A45: 43 | B45: 2008-05-16 | C45: 13:00:36 | D45: 00:00:42 | E45: 21 | F45: 20 | G45: 24 | H45: 25 | I45: 400 | J45: 0.44 | K45: 5 | L45: -999 | M45: 1 | N45: 100 | O45: 0 | P45: 20 | Q45: 0 | R45: 5 | S45: 30 | T45: 5 | U45: 0.02 | V45: 0.0003333333333 | W45: 5 | X45: 0.01 | Y45: 100 | Z45: 3 | AA45: 20 | AB45: 0.04 | AC45: 0 | AD45: 0 | AE45: 0 | AF45: 0 | AG45: 0.22 | AH45: 38.65
A46: 44 | B46: 2008-05-16 | C46: 13:00:37 | D46: 00:00:43 | E46: 21 | F46: 20 | G46: 24 | H46: 25 | I46: 400 | J46: 0.38 | K46: 5 | L46: -999 | M46: 0 | N46: 100 | O46: 0 | P46: 20 | Q46: 0 | R46: 5 | S46: 30 | T46: 5 | U46: 0.02 | V46: 0.0003333333333 | W46: 5 | X46: 0.01 | Y46: 100 | Z46: 3 | AA46: 20 | AB46: 0.04 | AC46: 0 | AD46: 0 | AE46: 0 | AF46: 0 | AG46: 0.22 | AH46: 38.65
A47: 45 | B47: 2008-05-16 | C47: 13:00:38 | D47: 00:00:44 | E47: 21 | F47: 20 | G47: 24 | H47: 25 | I47: 400 | J47: 0.34 | K47: 5 | L47: -999 | M47: 0 | N47: 100 | O47: 0 | P47: 20 | Q47: 0 | R47: 5 | S47: 30 | T47: 5 | U47: 0.03 | V47: 0.0005 | W47: 5 | X47: 0.01 | Y47: 100 | Z47: 3 | AA47: 20 | AB47: 0.04 | AC47: 0 | AD47: 0 | AE47: 0 | AF47: 0 | AG47: 0.22 | AH47: 38.65
A48: 46 | B48: 2008-05-16 | C48: 13:00:39 | D48: 00:00:45 | E48: 21 | F48: 20 | G48: 24 | H48: 25 | I48: 400 | J48: 0.34 | K48: 5 | L48: -999 | M48: 0 | N48: 100 | O48: 0 | P48: 20 | Q48: 0 | R48: 5 | S48: 30 | T48: 5 | U48: 0.03 | V48: 0.0005 | W48: 5 | X48: 0.01 | Y48: 100 | Z48: 3 | AA48: 20 | AB48: 0.04 | AC48: 0 | AD48: 0 | AE48: 0 | AF48: 0 | AG48: 0.22 | AH48: 38.65
A49: 47 | B49: 2008-05-16 | C49: 13:00:40 | D49: 00:00:46 | E49: 21 | F49: 20 | G49: 24 | H49: 25 | I49: 400 | J49: 0.31 | K49: 5 | L49: -999 | M49: 0 | N49: 100 | O49: 0 | P49: 20 | Q49: 0 | R49: 5 | S49: 30 | T49: 4 | U49: 0.03 | V49: 0.0005 | W49: 5 | X49: 0.01 | Y49: 100 | Z49: 3 | AA49: 20 | AB49: 0.04 | AC49: 0 | AD49: 0 | AE49: 0 | AF49: 0 | AG49: 0.22 | AH49: 38.65
A50: 48 | B50: 2008-05-16 | C50: 13:00:41 | D50: 00:00:47 | E50: 21 | F50: 20 | G50: 24 | H50: 25 | I50: 400 | J50: 0.28 | K50: 4 | L50: -999 | M50: 0 | N50: 100 | O50: 0 | P50: 20 | Q50: 0 | R50: 5 | S50: 30 | T50: 5 | U50: 0.03 | V50: 0.0005 | W50: 5 | X50: 0.01 | Y50: 100 | Z50: 3 | AA50: 20 | AB50: 0.04 | AC50: 0 | AD50: 0 | AE50: 0 | AF50: 0 | AG50: 0.22 | AH50: 38.65
A51: 49 | B51: 2008-05-16 | C51: 13:00:42 | D51: 00:00:48 | E51: 21 | F51: 20 | G51: 24 | H51: 25 | I51: 400 | J51: 0.28 | K51: 4 | L51: -999 | M51: 0 | N51: 100 | O51: 0 | P51: 20 | Q51: 0 | R51: 5 | S51: 30 | T51: 5 | U51: 0 | V51: 0 | W51: 5 | X51: 0.01 | Y51: 100 | Z51: 3 | AA51: 20 | AB51: 0.04 | AC51: 0 | AD51: 0 | AE51: 0 | AF51: 0 | AG51: 0.22 | AH51: 38.65
A52: 50 | B52: 2008-05-16 | C52: 13:00:43 | D52: 00:00:49 | E52: 21 | F52: 20 | G52: 24 | H52: 25 | I52: 400 | J52: 0.26 | K52: 4 | L52: -999 | M52: 0 | N52: 100 | O52: 0 | P52: 20 | Q52: 0 | R52: 5 | S52: 30 | T52: 4 | U52: 0 | V52: 0 | W52: 5 | X52: 0.01 | Y52: 100 | Z52: 3 | AA52: 20 | AB52: 0.04 | AC52: 0 | AD52: 0 | AE52: 0 | AF52: 0 | AG52: 0.22 | AH52: 38.65
A53: 51 | B53: 2008-05-16 | C53: 13:00:44 | D53: 00:00:50 | E53: 21 | F53: 20 | G53: 24 | H53: 25 | I53: 400 | J53: 0.24 | K53: 4 | L53: -999 | M53: 0 | N53: 100 | O53: 0 | P53: 20 | Q53: 0 | R53: 5 | S53: 30 | T53: 5 | U53: 0 | V53: 0 | W53: 5 | X53: 0.01 | Y53: 100 | Z53: 3 | AA53: 20 | AB53: 0.04 | AC53: 0 | AD53: 0 | AE53: 0 | AF53: 0 | AG53: 0.22 | AH53: 38.65
A54: 52 | B54: 2008-05-16 | C54: 13:00:45 | D54: 00:00:51 | E54: 21 | F54: 20 | G54: 24 | H54: 25 | I54: 400 | J54: 0.24 | K54: 4 | L54: -999 | M54: 0 | N54: 100 | O54: 0 | P54: 20 | Q54: 0 | R54: 5 | S54: 30 | T54: 4 | U54: 0.01 | V54: 0.0001666666667 | W54: 5 | X54: 0.01 | Y54: 100 | Z54: 3 | AA54: 20 | AB54: 0.04 | AC54: 0 | AD54: 0 | AE54: 0 | AF54: 0 | AG54: 0.22 | AH54: 38.65
A55: 53 | B55: 2008-05-16 | C55: 13:00:46 | D55: 00:00:52 | E55: 21 | F55: 20 | G55: 24 | H55: 25 | I55: 400 | J55: 0.23 | K55: 4 | L55: -999 | M55: 0 | N55: 100 | O55: 0 | P55: 20 | Q55: 0 | R55: 5 | S55: 30 | T55: 4 | U55: 0.01 | V55: 0.0001666666667 | W55: 5 | X55: 0.01 | Y55: 100 | Z55: 3 | AA55: 20 | AB55: 0.04 | AC55: 0 | AD55: 0 | AE55: 0 | AF55: 0 | AG55: 0.22 | AH55: 38.65
A56: 54 | B56: 2008-05-16 | C56: 13:00:47 | D56: 00:00:53 | E56: 21 | F56: 20 | G56: 24 | H56: 25 | I56: 400 | J56: 0.22 | K56: 4 | L56: -999 | M56: 0 | N56: 100 | O56: 0 | P56: 20 | Q56: 0 | R56: 5 | S56: 30 | T56: 5 | U56: 0.01 | V56: 0.0001666666667 | W56: 5 | X56: 0.01 | Y56: 100 | Z56: 3 | AA56: 20 | AB56: 0.04 | AC56: 0 | AD56: 0 | AE56: 0 | AF56: 0 | AG56: 0.22 | AH56: 38.65
A57: 55 | B57: 2008-05-16 | C57: 13:00:48 | D57: 00:00:54 | E57: 20 | F57: 20 | G57: 24 | H57: 25 | I57: 400 | J57: 0.22 | K57: 4 | L57: -999 | M57: 0 | N57: 100 | O57: 0 | P57: 20 | Q57: 0 | R57: 5 | S57: 30 | T57: 5 | U57: 0.04 | V57: 0.0006666666667 | W57: 5 | X57: 0.01 | Y57: 100 | Z57: 3 | AA57: 20 | AB57: 0.04 | AC57: 0 | AD57: 0 | AE57: 0 | AF57: 0 | AG57: 0.22 | AH57: 38.65
A58: 56 | B58: 2008-05-16 | C58: 13:00:49 | D58: 00:00:55 | E58: 20 | F58: 20 | G58: 24 | H58: 25 | I58: 400 | J58: 0.21 | K58: 4 | L58: -999 | M58: 0 | N58: 100 | O58: 0 | P58: 20 | Q58: 0 | R58: 5 | S58: 30 | T58: 4 | U58: 0.04 | V58: 0.0006666666667 | W58: 5 | X58: 0.01 | Y58: 100 | Z58: 3 | AA58: 20 | AB58: 0.04 | AC58: 0 | AD58: 0 | AE58: 0 | AF58: 0 | AG58: 0.22 | AH58: 38.65
A59: 57 | B59: 2008-05-16 | C59: 13:00:50 | D59: 00:00:56 | E59: 20 | F59: 20 | G59: 24 | H59: 25 | I59: 400 | J59: 0.2 | K59: 4 | L59: -999 | M59: 0 | N59: 100 | O59: 0 | P59: 20 | Q59: 0 | R59: 5 | S59: 30 | T59: 5 | U59: 0.04 | V59: 0.0006666666667 | W59: 5 | X59: 0.01 | Y59: 100 | Z59: 3 | AA59: 20 | AB59: 0.04 | AC59: 0 | AD59: 0 | AE59: 0 | AF59: 0 | AG59: 0.22 | AH59: 38.65
A60: 58 | B60: 2008-05-16 | C60: 13:00:51 | D60: 00:00:57 | E60: 20 | F60: 20 | G60: 24 | H60: 25 | I60: 400 | J60: 0.2 | K60: 4 | L60: -999 | M60: 0 | N60: 100 | O60: 0 | P60: 20 | Q60: 0 | R60: 5 | S60: 30 | T60: 5 | U60: 0.04 | V60: 0.0006666666667 | W60: 5 | X60: 0.01 | Y60: 100 | Z60: 3 | AA60: 20 | AB60: 0.04 | AC60: 0 | AD60: 0 | AE60: 0 | AF60: 0 | AG60: 0.22 | AH60: 38.65
A61: 59 | B61: 2008-05-16 | C61: 13:00:52 | D61: 00:00:58 | E61: 20 | F61: 20 | G61: 24 | H61: 25 | I61: 400 | J61: 0.19 | K61: 4 | L61: -999 | M61: 0 | N61: 100 | O61: 0 | P61: 20 | Q61: 0 | R61: 5 | S61: 30 | T61: 5 | U61: 0.02 | V61: 0.0003333333333 | W61: 5 | X61: 0.01 | Y61: 100 | Z61: 3 | AA61: 20 | AB61: 0.05 | AC61: 0 | AD61: 0 | AE61: 0 | AF61: 0 | AG61: 0.22 | AH61: 38.65
A62: 60 | B62: 2008-05-16 | C62: 13:00:53 | D62: 00:00:59 | E62: 20 | F62: 20 | G62: 24 | H62: 25 | I62: 400 | J62: 0.19 | K62: 4 | L62: -999 | M62: 0 | N62: 100 | O62: 0 | P62: 20 | Q62: 0 | R62: 5 | S62: 30 | T62: 4 | U62: 0.02 | V62: 0.0003333333333 | W62: 5 | X62: 0.01 | Y62: 100 | Z62: 3 | AA62: 20 | AB62: 0.04 | AC62: 0 | AD62: 0 | AE62: 0 | AF62: 0 | AG62: 0.22 | AH62: 38.65
A63: 61 | B63: 2008-05-16 | C63: 13:00:54 | D63: 00:01:00 | E63: 20 | F63: 20 | G63: 24 | H63: 25 | I63: 400 | J63: 0.18 | K63: 4 | L63: -999 | M63: 0 | N63: 100 | O63: 0 | P63: 20 | Q63: 0 | R63: 5 | S63: 30 | T63: 5 | U63: 0.02 | V63: 0.0003333333333 | W63: 5 | X63: 0.01 | Y63: 100 | Z63: 3 | AA63: 20 | AB63: 0.04 | AC63: 0 | AD63: 0 | AE63: 0 | AF63: 0 | AG63: 0.22 | AH63: 38.65
A64: 62 | B64: 2008-05-16 | C64: 13:00:55 | D64: 00:01:01 | E64: 20 | F64: 20 | G64: 24 | H64: 25 | I64: 400 | J64: 0.18 | K64: 4 | L64: -999 | M64: 0 | N64: 100 | O64: 0 | P64: 20 | Q64: 0 | R64: 5 | S64: 30 | T64: 5 | U64: 0.01 | V64: 0.0001666666667 | W64: 5 | X64: 0.01 | Y64: 100 | Z64: 3 | AA64: 20 | AB64: 0.04 | AC64: 0 | AD64: 0 | AE64: 0 | AF64: 0 | AG64: 0.22 | AH64: 38.65
A65: 63 | B65: 2008-05-16 | C65: 13:00:56 | D65: 00:01:02 | E65: 20 | F65: 20 | G65: 24 | H65: 25 | I65: 400 | J65: 0.18 | K65: 4 | L65: -999 | M65: 0 | N65: 100 | O65: 0 | P65: 20 | Q65: 0 | R65: 5 | S65: 30 | T65: 5 | U65: 0.01 | V65: 0.0001666666667 | W65: 5 | X65: 0.01 | Y65: 100 | Z65: 3 | AA65: 20 | AB65: 0.04 | AC65: 0 | AD65: 0 | AE65: 0 | AF65: 0 | AG65: 0.22 | AH65: 38.65
A66: 64 | B66: 2008-05-16 | C66: 13:00:57 | D66: 00:01:03 | E66: 20 | F66: 20 | G66: 24 | H66: 25 | I66: 400 | J66: 0.17 | K66: 4 | L66: -999 | M66: 0 | N66: 100 | O66: 0 | P66: 20 | Q66: 0 | R66: 5 | S66: 30 | T66: 4 | U66: 0.01 | V66: 0.0001666666667 | W66: 5 | X66: 0.01 | Y66: 100 | Z66: 3 | AA66: 20 | AB66: 0.04 | AC66: 0 | AD66: 0 | AE66: 0 | AF66: 0 | AG66: 0.22 | AH66: 38.65
A67: 65 | B67: 2008-05-16 | C67: 13:00:58 | D67: 00:01:04 | E67: 20 | F67: 20 | G67: 24 | H67: 25 | I67: 400 | J67: 0.17 | K67: 4 | L67: -999 | M67: 0 | N67: 100 | O67: 0 | P67: 20 | Q67: 0 | R67: 5 | S67: 30 | T67: 5 | U67: 0.01 | V67: 0.0001666666667 | W67: 5 | X67: 0.01 | Y67: 100 | Z67: 3 | AA67: 20 | AB67: 0.04 | AC67: 0 | AD67: 0 | AE67: 0 | AF67: 0 | AG67: 0.22 | AH67: 38.65
A68: 66 | B68: 2008-05-16 | C68: 13:00:59 | D68: 00:01:05 | E68: 20 | F68: 20 | G68: 24 | H68: 25 | I68: 400 | J68: 0.17 | K68: 4 | L68: -999 | M68: 0 | N68: 100 | O68: 0 | P68: 20 | Q68: 0 | R68: 5 | S68: 30 | T68: 5 | U68: 0.01 | V68: =U68/60 -> 0.0001666666667 | W68: 5 | X68: 0.01 | Y68: 100 | Z68: 3 | AA68: 20 | AB68: 0.04 | AC68: 0 | AD68: 0 | AE68: 0 | AF68: 0 | AG68: 0.22 | AH68: 38.65
A69: 67 | B69: 2008-05-16 | C69: 13:01:00 | D69: 00:01:06 | E69: 20 | F69: 20 | G69: 24 | H69: 25 | I69: 400 | J69: 0.17 | K69: 4 | L69: -999 | M69: 0 | N69: 100 | O69: 0 | P69: 20 | Q69: 0 | R69: 5 | S69: 30 | T69: 4 | U69: 0.01 | V69: 0.0001666666667 | W69: 5 | X69: 0.01 | Y69: 100 | Z69: 3 | AA69: 20 | AB69: 0.04 | AC69: 0 | AD69: 0 | AE69: 0 | AF69: 0 | AG69: 0.22 | AH69: 38.65
A70: 68 | B70: 2008-05-16 | C70: 13:01:01 | D70: 00:01:07 | E70: 20 | F70: 20 | G70: 24 | H70: 25 | I70: 400 | J70: 0.17 | K70: 4 | L70: -999 | M70: 0 | N70: 100 | O70: 0 | P70: 20 | Q70: 0 | R70: 5 | S70: 30 | T70: 5 | U70: 0.01 | V70: 0.0001666666667 | W70: 5 | X70: 0.01 | Y70: 100 | Z70: 3 | AA70: 20 | AB70: 0.04 | AC70: 0 | AD70: 0 | AE70: 0 | AF70: 0 | AG70: 0.22 | AH70: 38.65
A71: 69 | B71: 2008-05-16 | C71: 13:01:02 | D71: 00:01:08 | E71: 20 | F71: 20 | G71: 24 | H71: 25 | I71: 400 | J71: 0.16 | K71: 4 | L71: -999 | M71: 0 | N71: 100 | O71: 0 | P71: 20 | Q71: 0 | R71: 5 | S71: 30 | T71: 5 | U71: 0.01 | V71: 0.0001666666667 | W71: 5 | X71: 0.01 | Y71: 100 | Z71: 3 | AA71: 20 | AB71: 0.04 | AC71: 0 | AD71: 0 | AE71: 0 | AF71: 0 | AG71: 0.22 | AH71: 38.65
A72: 70 | B72: 2008-05-16 | C72: 13:01:03 | D72: 00:01:09 | E72: 20 | F72: 20 | G72: 24 | H72: 25 | I72: 400 | J72: 0.16 | K72: 4 | L72: -999 | M72: 0 | N72: 100 | O72: 0 | P72: 20 | Q72: 0 | R72: 5 | S72: 30 | T72: 5 | U72: 0.01 | V72: 0.0001666666667 | W72: 5 | X72: 0.01 | Y72: 100 | Z72: 3 | AA72: 20 | AB72: 0.04 | AC72: 0 | AD72: 0 | AE72: 0 | AF72: 0 | AG72: 0.22 | AH72: 38.65
A73: 71 | B73: 2008-05-16 | C73: 13:01:04 | D73: 00:01:10 | E73: 20 | F73: 20 | G73: 24 | H73: 25 | I73: 400 | J73: 0.16 | K73: 4 | L73: -999 | M73: 0 | N73: 100 | O73: 0 | P73: 20 | Q73: 0 | R73: 5 | S73: 30 | T73: 4 | U73: 0.01 | V73: 0.0001666666667 | W73: 5 | X73: 0.01 | Y73: 100 | Z73: 3 | AA73: 20 | AB73: 0.04 | AC73: 0 | AD73: 0 | AE73: 0 | AF73: 0 | AG73: 0.22 | AH73: 38.65
A74: 72 | B74: 2008-05-16 | C74: 13:01:05 | D74: 00:01:11 | E74: 20 | F74: 21 | G74: 24 | H74: 25 | I74: 400 | J74: 0.16 | K74: 4 | L74: -999 | M74: 0 | N74: 100 | O74: 0 | P74: 20 | Q74: 0 | R74: 5 | S74: 30 | T74: 5 | U74: 0.01 | V74: 0.0001666666667 | W74: 5 | X74: 0.01 | Y74: 100 | Z74: 3 | AA74: 20 | AB74: 0.04 | AC74: 0 | AD74: 0 | AE74: 0 | AF74: 0 | AG74: 0.22 | AH74: 38.65
A75: 73 | B75: 2008-05-16 | C75: 13:01:06 | D75: 00:01:12 | E75: 20 | F75: 21 | G75: 24 | H75: 25 | I75: 400 | J75: 0.15 | K75: 4 | L75: -999 | M75: 0 | N75: 100 | O75: 0 | P75: 20 | Q75: 0 | R75: 5 | S75: 30 | T75: 5 | U75: 0.01 | V75: 0.0001666666667 | W75: 5 | X75: 0.01 | Y75: 100 | Z75: 3 | AA75: 20 | AB75: 0.04 | AC75: 0 | AD75: 0 | AE75: 0 | AF75: 0 | AG75: 0.22 | AH75: 38.65
A76: 74 | B76: 2008-05-16 | C76: 13:01:07 | D76: 00:01:13 | E76: 20 | F76: 21 | G76: 24 | H76: 25 | I76: 400 | J76: 0.15 | K76: 4 | L76: -999 | M76: 0 | N76: 100 | O76: 0 | P76: 20 | Q76: 0 | R76: 5 | S76: 30 | T76: 5 | U76: 0.01 | V76: 0.0001666666667 | W76: 5 | X76: 0.01 | Y76: 100 | Z76: 3 | AA76: 20 | AB76: 0.04 | AC76: 0 | AD76: 0 | AE76: 0 | AF76: 0 | AG76: 0.22 | AH76: 38.65
A77: 75 | B77: 2008-05-16 | C77: 13:01:08 | D77: 00:01:14 | E77: 20 | F77: 21 | G77: 24 | H77: 25 | I77: 400 | J77: 0.15 | K77: 4 | L77: -999 | M77: 0 | N77: 100 | O77: 0 | P77: 20 | Q77: 0 | R77: 5 | S77: 30 | T77: 5 | U77: 0.01 | V77: 0.0001666666667 | W77: 5 | X77: 0.01 | Y77: 100 | Z77: 3 | AA77: 20 | AB77: 0.04 | AC77: 0 | AD77: 0 | AE77: 0 | AF77: 0 | AG77: 0.22 | AH77: 38.65
A78: 76 | B78: 2008-05-16 | C78: 13:01:09 | D78: 00:01:15 | E78: 20 | F78: 21 | G78: 24 | H78: 25 | I78: 400 | J78: 0.15 | K78: 4 | L78: -999 | M78: 0 | N78: 100 | O78: 0 | P78: 20 | Q78: 0 | R78: 5 | S78: 30 | T78: 5 | U78: 0.01 | V78: 0.0001666666667 | W78: 5 | X78: 0.01 | Y78: 100 | Z78: 3 | AA78: 20 | AB78: 0.04 | AC78: 0 | AD78: 0 | AE78: 0 | AF78: 0 | AG78: 0.22 | AH78: 38.65
A79: 77 | B79: 2008-05-16 | C79: 13:01:10 | D79: 00:01:16 | E79: 20 | F79: 21 | G79: 24 | H79: 25 | I79: 400 | J79: 0.15 | K79: 4 | L79: -999 | M79: 0 | N79: 100 | O79: 0 | P79: 20 | Q79: 0 | R79: 5 | S79: 30 | T79: 5 | U79: 0.01 | V79: 0.0001666666667 | W79: 5 | X79: 0.01 | Y79: 100 | Z79: 3 | AA79: 20 | AB79: 0.04 | AC79: 0 | AD79: 0 | AE79: 0 | AF79: 0 | AG79: 0.22 | AH79: 38.65
A80: 78 | B80: 2008-05-16 | C80: 13:01:11 | D80: 00:01:17 | E80: 20 | F80: 21 | G80: 24 | H80: 25 | I80: 400 | J80: 0.15 | K80: 4 | L80: -999 | M80: 0 | N80: 100 | O80: 0 | P80: 20 | Q80: 0 | R80: 5 | S80: 30 | T80: 5 | U80: 0.01 | V80: 0.0001666666667 | W80: 5 | X80: 0.01 | Y80: 100 | Z80: 3 | AA80: 20 | AB80: 0.04 | AC80: 0 | AD80: 0 | AE80: 0 | AF80: 0 | AG80: 0.22 | AH80: 38.65
A81: 79 | B81: 2008-05-16 | C81: 13:01:12 | D81: 00:01:18 | E81: 20 | F81: 21 | G81: 24 | H81: 25 | I81: 400 | J81: 0.15 | K81: 4 | L81: -999 | M81: 0 | N81: 100 | O81: 0 | P81: 20 | Q81: 0 | R81: 5 | S81: 30 | T81: 5 | U81: 0 | V81: 0 | W81: 5 | X81: 0.01 | Y81: 100 | Z81: 3 | AA81: 20 | AB81: 0.04 | AC81: 0 | AD81: 0 | AE81: 0 | AF81: 0 | AG81: 0.22 | AH81: 38.65
A82: 80 | B82: 2008-05-16 | C82: 13:01:13 | D82: 00:01:19 | E82: 20 | F82: 21 | G82: 24 | H82: 25 | I82: 400 | J82: 0.14 | K82: 4 | L82: -999 | M82: 0 | N82: 100 | O82: 0 | P82: 20 | Q82: 0 | R82: 5 | S82: 30 | T82: 5 | U82: 0 | V82: 0 | W82: 5 | X82: 0.01 | Y82: 100 | Z82: 3 | AA82: 20 | AB82: 0.04 | AC82: 0 | AD82: 0 | AE82: 0 | AF82: 0 | AG82: 0.22 | AH82: 38.65
A83: 81 | B83: 2008-05-16 | C83: 13:01:14 | D83: 00:01:20 | E83: 20 | F83: 21 | G83: 24 | H83: 25 | I83: 400 | J83: 0.14 | K83: 4 | L83: -999 | M83: 0 | N83: 100 | O83: 0 | P83: 20 | Q83: 0 | R83: 5 | S83: 30 | T83: 5 | U83: 0 | V83: 0 | W83: 5 | X83: 0.01 | Y83: 100 | Z83: 3 | AA83: 20 | AB83: 0.04 | AC83: 0 | AD83: 0 | AE83: 0 | AF83: 0 | AG83: 0.22 | AH83: 38.65
A84: 82 | B84: 2008-05-16 | C84: 13:01:15 | D84: 00:01:21 | E84: 20 | F84: 21 | G84: 24 | H84: 25 | I84: 400 | J84: 0.14 | K84: 4 | L84: -999 | M84: 0 | N84: 100 | O84: 0 | P84: 20 | Q84: 0 | R84: 5 | S84: 30 | T84: 5 | U84: 0 | V84: 0 | W84: 5 | X84: 0.01 | Y84: 100 | Z84: 3 | AA84: 20 | AB84: 0.04 | AC84: 0 | AD84: 0 | AE84: 0 | AF84: 0 | AG84: 0.22 | AH84: 38.65
A85: 83 | B85: 2008-05-16 | C85: 13:01:16 | D85: 00:01:22 | E85: 20 | F85: 21 | G85: 24 | H85: 25 | I85: 400 | J85: 0.14 | K85: 4 | L85: -999 | M85: 0 | N85: 100 | O85: 0 | P85: 20 | Q85: 0 | R85: 5 | S85: 30 | T85: 5 | U85: 0 | V85: 0 | W85: 5 | X85: 0.01 | Y85: 100 | Z85: 3 | AA85: 20 | AB85: 0.04 | AC85: 0 | AD85: 0 | AE85: 0 | AF85: 0 | AG85: 0.23 | AH85: 38.66
A86: 84 | B86: 2008-05-16 | C86: 13:01:17 | D86: 00:01:23 | E86: 20 | F86: 21 | G86: 24 | H86: 25 | I86: 400 | J86: 0.14 | K86: 4 | L86: -999 | M86: 0 | N86: 100 | O86: 0 | P86: 20 | Q86: 0 | R86: 5 | S86: 30 | T86: 5 | U86: 0 | V86: 0 | W86: 5 | X86: 0.01 | Y86: 100 | Z86: 3 | AA86: 20 | AB86: 0.04 | AC86: 0 | AD86: 0 | AE86: 0 | AF86: 0 | AG86: 0.23 | AH86: 38.66
A87: 85 | B87: 2008-05-16 | C87: 13:01:18 | D87: 00:01:24 | E87: 20 | F87: 21 | G87: 24 | H87: 25 | I87: 400 | J87: 0.14 | K87: 4 | L87: -999 | M87: 0 | N87: 100 | O87: 0 | P87: 20 | Q87: 0 | R87: 5 | S87: 30 | T87: 5 | U87: 0.02 | V87: 0.0003333333333 | W87: 5 | X87: 0.01 | Y87: 100 | Z87: 3 | AA87: 20 | AB87: 0.04 | AC87: 0 | AD87: 0 | AE87: 0 | AF87: 0 | AG87: 0.23 | AH87: 38.66
A88: 86 | B88: 2008-05-16 | C88: 13:01:19 | D88: 00:01:25 | E88: 20 | F88: 21 | G88: 24 | H88: 25 | I88: 400 | J88: 0.14 | K88: 4 | L88: -999 | M88: 0 | N88: 100 | O88: 0 | P88: 20 | Q88: 0 | R88: 5 | S88: 30 | T88: 4 | U88: 0.02 | V88: 0.0003333333333 | W88: 5 | X88: 0.01 | Y88: 100 | Z88: 3 | AA88: 20 | AB88: 0.04 | AC88: 0 | AD88: 0 | AE88: 0 | AF88: 0 | AG88: 0.23 | AH88: 38.66
A89: 87 | B89: 2008-05-16 | C89: 13:01:20 | D89: 00:01:26 | E89: 20 | F89: 21 | G89: 24 | H89: 25 | I89: 400 | J89: 0.14 | K89: 4 | L89: -999 | M89: 0 | N89: 100 | O89: 0 | P89: 20 | Q89: 0 | R89: 5 | S89: 30 | T89: 5 | U89: 0.02 | V89: 0.0003333333333 | W89: 5 | X89: 0.01 | Y89: 100 | Z89: 3 | AA89: 20 | AB89: 0.05 | AC89: 0 | AD89: 0 | AE89: 0 | AF89: 0 | AG89: 0.23 | AH89: 38.66
A90: 88 | B90: 2008-05-16 | C90: 13:01:21 | D90: 00:01:27 | E90: 20 | F90: 21 | G90: 24 | H90: 25 | I90: 400 | J90: 0.14 | K90: 4 | L90: -999 | M90: 0 | N90: 100 | O90: 0 | P90: 20 | Q90: 0 | R90: 5 | S90: 30 | T90: 4 | U90: 0.02 | V90: 0.0003333333333 | W90: 5 | X90: 0.01 | Y90: 100 | Z90: 3 | AA90: 20 | AB90: 0.05 | AC90: 0 | AD90: 0 | AE90: 0 | AF90: 0 | AG90: 0.23 | AH90: 38.66
A91: 89 | B91: 2008-05-16 | C91: 13:01:22 | D91: 00:01:28 | E91: 20 | F91: 21 | G91: 24 | H91: 25 | I91: 400 | J91: 0.13 | K91: 4 | L91: -999 | M91: 0 | N91: 100 | O91: 0 | P91: 20 | Q91: 0 | R91: 5 | S91: 30 | T91: 4 | U91: 0.02 | V91: 0.0003333333333 | W91: 5 | X91: 0.01 | Y91: 100 | Z91: 3 | AA91: 20 | AB91: 0.05 | AC91: 0 | AD91: 0 | AE91: 0 | AF91: 0 | AG91: 0.23 | AH91: 38.66
A92: 90 | B92: 2008-05-16 | C92: 13:01:23 | D92: 00:01:29 | E92: 20 | F92: 21 | G92: 24 | H92: 25 | I92: 400 | J92: 0.13 | K92: 4 | L92: -999 | M92: 0 | N92: 100 | O92: 0 | P92: 20 | Q92: 0 | R92: 5 | S92: 30 | T92: 5 | U92: 0.02 | V92: 0.0003333333333 | W92: 5 | X92: 0.01 | Y92: 100 | Z92: 3 | AA92: 20 | AB92: 0.04 | AC92: 0 | AD92: 0 | AE92: 0 | AF92: 0 | AG92: 0.23 | AH92: 38.66
A93: 91 | B93: 2008-05-16 | C93: 13:01:24 | D93: 00:01:30 | E93: 20 | F93: 21 | G93: 24 | H93: 25 | I93: 400 | J93: 0.13 | K93: 4 | L93: -999 | M93: 0 | N93: 100 | O93: 0 | P93: 20 | Q93: 0 | R93: 5 | S93: 30 | T93: 4 | U93: 0.02 | V93: 0.0003333333333 | W93: 5 | X93: 0.01 | Y93: 100 | Z93: 3 | AA93: 20 | AB93: 0.04 | AC93: 0 | AD93: 0 | AE93: 0 | AF93: 0 | AG93: 0.23 | AH93: 38.66
A94: 92 | B94: 2008-05-16 | C94: 13:01:25 | D94: 00:01:31 | E94: 20 | F94: 21 | G94: 24 | H94: 25 | I94: 400 | J94: 0.13 | K94: 4 | L94: -999 | M94: 0 | N94: 100 | O94: 0 | P94: 20 | Q94: 0 | R94: 5 | S94: 30 | T94: 5 | U94: 0.01 | V94: 0.0001666666667 | W94: 5 | X94: 0.01 | Y94: 100 | Z94: 3 | AA94: 20 | AB94: 0.04 | AC94: 0 | AD94: 0 | AE94: 0 | AF94: 0 | AG94: 0.23 | AH94: 38.66
A95: 93 | B95: 2008-05-16 | C95: 13:01:26 | D95: 00:01:32 | E95: 20 | F95: 21 | G95: 24 | H95: 25 | I95: 400 | J95: 0.13 | K95: 4 | L95: -999 | M95: 0 | N95: 100 | O95: 0 | P95: 20 | Q95: 0 | R95: 5 | S95: 30 | T95: 5 | U95: 0.01 | V95: 0.0001666666667 | W95: 5 | X95: 0.01 | Y95: 100 | Z95: 3 | AA95: 20 | AB95: 0.04 | AC95: 0 | AD95: 0 | AE95: 0 | AF95: 0 | AG95: 0.23 | AH95: 38.66
A96: 94 | B96: 2008-05-16 | C96: 13:01:27 | D96: 00:01:33 | E96: 20 | F96: 21 | G96: 24 | H96: 25 | I96: 400 | J96: 0.13 | K96: 4 | L96: -999 | M96: 0 | N96: 100 | O96: 0 | P96: 20 | Q96: 0 | R96: 5 | S96: 30 | T96: 5 | U96: 0.01 | V96: 0.0001666666667 | W96: 5 | X96: 0.01 | Y96: 100 | Z96: 3 | AA96: 20 | AB96: 0.04 | AC96: 0 | AD96: 0 | AE96: 0 | AF96: 0 | AG96: 0.23 | AH96: 38.66
A97: 95 | B97: 2008-05-16 | C97: 13:01:28 | D97: 00:01:34 | E97: 20 | F97: 21 | G97: 24 | H97: 25 | I97: 400 | J97: 0.13 | K97: 4 | L97: -999 | M97: 0 | N97: 100 | O97: 0 | P97: 20 | Q97: 0 | R97: 5 | S97: 30 | T97: 5 | U97: -0.01 | V97: -0.0001666666667 | W97: 5 | X97: 0.01 | Y97: 100 | Z97: 3 | AA97: 20 | AB97: 0.04 | AC97: 0 | AD97: 0 | AE97: 0 | AF97: 0 | AG97: 0.23 | AH97: 38.66
A98: 96 | B98: 2008-05-16 | C98: 13:01:29 | D98: 00:01:35 | E98: 20 | F98: 21 | G98: 24 | H98: 25 | I98: 400 | J98: 0.13 | K98: 4 | L98: -999 | M98: 0 | N98: 100 | O98: 0 | P98: 20 | Q98: 0 | R98: 5 | S98: 30 | T98: 5 | U98: -0.01 | V98: -0.0001666666667 | W98: 5 | X98: 0.01 | Y98: 100 | Z98: 3 | AA98: 20 | AB98: 0.04 | AC98: 0 | AD98: 0 | AE98: 0 | AF98: 0 | AG98: 0.23 | AH98: 38.66
A99: 97 | B99: 2008-05-16 | C99: 13:01:30 | D99: 00:01:36 | E99: 20 | F99: 21 | G99: 24 | H99: 25 | I99: 400 | J99: 0.13 | K99: 4 | L99: -999 | M99: 0 | N99: 100 | O99: 0 | P99: 20 | Q99: 0 | R99: 5 | S99: 30 | T99: 4 | U99: -0.01 | V99: -0.0001666666667 | W99: 5 | X99: 0.01 | Y99: 100 | Z99: 3 | AA99: 20 | AB99: 0.04 | AC99: 0 | AD99: 0 | AE99: 0 | AF99: 0 | AG99: 0.23 | AH99: 38.66
A100: 98 | B100: 2008-05-16 | C100: 13:01:31 | D100: 00:01:37 | E100: 20 | F100: 21 | G100: 24 | H100: 25 | I100: 400 | J100: 0.13 | K100: 4 | L100: -999 | M100: 0 | N100: 100 | O100: 0 | P100: 20 | Q100: 0 | R100: 5 | S100: 30 | T100: 5 | U100: -0.01 | V100: -0.0001666666667 | W100: 5 | X100: 0.01 | Y100: 100 | Z100: 3 | AA100: 20 | AB100: 0.04 | AC100: 0 | AD100: 0 | AE100: 0 | AF100: 0 | AG100: 0.23 | AH100: 38.66
A101: 99 | B101: 2008-05-16 | C101: 13:01:32 | D101: 00:01:38 | E101: 20 | F101: 21 | G101: 24 | H101: 25 | I101: 400 | J101: 0.13 | K101: 4 | L101: -999 | M101: 0 | N101: 100 | O101: 0 | P101: 20 | Q101: 0 | R101: 5 | S101: 30 | T101: 5 | U101: 0 | V101: 0 | W101: 5 | X101: 0.01 | Y101: 100 | Z101: 3 | AA101: 20 | AB101: 0.04 | AC101: 0 | AD101: 0 | AE101: 0 | AF101: 0 | AG101: 0.23 | AH101: 38.66
A102: 100 | B102: 2008-05-16 | C102: 13:01:33 | D102: 00:01:39 | E102: 20 | F102: 21 | G102: 24 | H102: 25 | I102: 400 | J102: 0.12 | K102: 4 | L102: -999 | M102: 0 | N102: 100 | O102: 0 | P102: 20 | Q102: 0 | R102: 5 | S102: 30 | T102: 5 | U102: 0 | V102: 0 | W102: 5 | X102: 0.01 | Y102: 100 | Z102: 3 | AA102: 20 | AB102: 0.04 | AC102: 0 | AD102: 0 | AE102: 0 | AF102: 0 | AG102: 0.23 | AH102: 38.66
A103: 101 | B103: 2008-05-16 | C103: 13:01:34 | D103: 00:01:40 | E103: 20 | F103: 21 | G103: 24 | H103: 25 | I103: 400 | J103: 0.12 | K103: 4 | L103: -999 | M103: 0 | N103: 100 | O103: 0 | P103: 20 | Q103: 0 | R103: 5 | S103: 30 | T103: 5 | U103: 0 | V103: 0 | W103: 5 | X103: 0.01 | Y103: 100 | Z103: 3 | AA103: 20 | AB103: 0.05 | AC103: 0 | AD103: 0 | AE103: 0 | AF103: 0 | AG103: 0.23 | AH103: 38.66
A104: 102 | B104: 2008-05-16 | C104: 13:01:35 | D104: 00:01:41 | E104: 20 | F104: 21 | G104: 24 | H104: 25 | I104: 400 | J104: 0.12 | K104: 4 | L104: -999 | M104: 0 | N104: 100 | O104: 0 | P104: 20 | Q104: 0 | R104: 5 | S104: 30 | T104: 5 | U104: 0 | V104: 0 | W104: 5 | X104: 0.01 | Y104: 100 | Z104: 3 | AA104: 20 | AB104: 0.05 | AC104: 0 | AD104: 0 | AE104: 0 | AF104: 0 | AG104: 0.23 | AH104: 38.66
A105: 103 | B105: 2008-05-16 | C105: 13:01:36 | D105: 00:01:42 | E105: 20 | F105: 21 | G105: 24 | H105: 25 | I105: 400 | J105: 0.12 | K105: 4 | L105: -999 | M105: 0 | N105: 100 | O105: 0 | P105: 20 | Q105: 0 | R105: 5 | S105: 30 | T105: 5 | U105: 0 | V105: 0 | W105: 5 | X105: 0.01 | Y105: 100 | Z105: 3 | AA105: 20 | AB105: 0.04 | AC105: 0 | AD105: 0 | AE105: 0 | AF105: 0 | AG105: 0.23 | AH105: 38.66
A106: 104 | B106: 2008-05-16 | C106: 13:01:37 | D106: 00:01:43 | E106: 20 | F106: 21 | G106: 24 | H106: 25 | I106: 400 | J106: 0.12 | K106: 4 | L106: -999 | M106: 0 | N106: 100 | O106: 0 | P106: 20 | Q106: 0 | R106: 5 | S106: 30 | T106: 5 | U106: 0 | V106: 0 | W106: 5 | X106: 0.01 | Y106: 100 | Z106: 3 | AA106: 20 | AB106: 0.04 | AC106: 0 | AD106: 0 | AE106: 0 | AF106: 0 | AG106: 0.23 | AH106: 38.66
A107: 105 | B107: 2008-05-16 | C107: 13:01:38 | D107: 00:01:44 | E107: 20 | F107: 21 | G107: 24 | H107: 25 | I107: 400 | J107: 0.12 | K107: 4 | L107: -999 | M107: 0 | N107: 100 | O107: 0 | P107: 20 | Q107: 0 | R107: 5 | S107: 30 | T107: 5 | U107: 0 | V107: 0 | W107: 5 | X107: 0.01 | Y107: 100 | Z107: 3 | AA107: 20 | AB107: 0.04 | AC107: 0 | AD107: 0 | AE107: 0 | AF107: 0 | AG107: 0.23 | AH107: 38.66
A108: 106 | B108: 2008-05-16 | C108: 13:01:39 | D108: 00:01:45 | E108: 20 | F108: 21 | G108: 24 | H108: 25 | I108: 400 | J108: 0.12 | K108: 4 | L108: -999 | M108: 0 | N108: 100 | O108: 0 | P108: 20 | Q108: 0 | R108: 5 | S108: 30 | T108: 5 | U108: 0 | V108: 0 | W108: 5 | X108: 0.01 | Y108: 100 | Z108: 3 | AA108: 20 | AB108: 0.04 | AC108: 0 | AD108: 0 | AE108: 0 | AF108: 0 | AG108: 0.23 | AH108: 38.66
A109: 107 | B109: 2008-05-16 | C109: 13:01:40 | D109: 00:01:46 | E109: 20 | F109: 21 | G109: 24 | H109: 25 | I109: 400 | J109: 0.12 | K109: 4 | L109: -999 | M109: 0 | N109: 100 | O109: 0 | P109: 20 | Q109: 0 | R109: 5 | S109: 30 | T109: 4 | U109: 0 | V109: 0 | W109: 5 | X109: 0.01 | Y109: 100 | Z109: 3 | AA109: 20 | AB109: 0.04 | AC109: 0 | AD109: 0 | AE109: 0 | AF109: 0 | AG109: 0.23 | AH109: 38.66
A110: 108 | B110: 2008-05-16 | C110: 13:01:41 | D110: 00:01:47 | E110: 20 | F110: 21 | G110: 24 | H110: 25 | I110: 400 | J110: 0.12 | K110: 4 | L110: -999 | M110: 0 | N110: 100 | O110: 0 | P110: 20 | Q110: 0 | R110: 5 | S110: 30 | T110: 5 | U110: 0 | V110: 0 | W110: 5 | X110: 0.01 | Y110: 100 | Z110: 3 | AA110: 20 | AB110: 0.04 | AC110: 0 | AD110: 0 | AE110: 0 | AF110: 0 | AG110: 0.23 | AH110: 38.66
A111: 109 | B111: 2008-05-16 | C111: 13:01:42 | D111: 00:01:48 | E111: 20 | F111: 21 | G111: 24 | H111: 25 | I111: 400 | J111: 0.12 | K111: 4 | L111: -999 | M111: 0 | N111: 100 | O111: 0 | P111: 20 | Q111: 0 | R111: 5 | S111: 30 | T111: 4 | U111: 0 | V111: 0 | W111: 5 | X111: 0.01 | Y111: 100 | Z111: 3 | AA111: 20 | AB111: 0.04 | AC111: 0 | AD111: 0 | AE111: 0 | AF111: 0 | AG111: 0.23 | AH111: 38.66
A112: 110 | B112: 2008-05-16 | C112: 13:01:43 | D112: 00:01:49 | E112: 20 | F112: 21 | G112: 24 | H112: 25 | I112: 400 | J112: 0.12 | K112: 4 | L112: -999 | M112: 0 | N112: 100 | O112: 0 | P112: 20 | Q112: 0 | R112: 5 | S112: 30 | T112: 5 | U112: 0 | V112: 0 | W112: 5 | X112: 0.01 | Y112: 100 | Z112: 3 | AA112: 20 | AB112: 0.05 | AC112: 0 | AD112: 0 | AE112: 0 | AF112: 0 | AG112: 0.23 | AH112: 38.66
A113: 111 | B113: 2008-05-16 | C113: 13:01:44 | D113: 00:01:50 | E113: 20 | F113: 21 | G113: 24 | H113: 25 | I113: 400 | J113: 0.12 | K113: 4 | L113: -999 | M113: 0 | N113: 100 | O113: 0 | P113: 20 | Q113: 0 | R113: 5 | S113: 30 | T113: 5 | U113: 0 | V113: 0 | W113: 5 | X113: 0.01 | Y113: 100 | Z113: 3 | AA113: 20 | AB113: 0.05 | AC113: 0 | AD113: 0 | AE113: 0 | AF113: 0 | AG113: 0.23 | AH113: 38.66
A114: 112 | B114: 2008-05-16 | C114: 13:01:45 | D114: 00:01:51 | E114: 20 | F114: 21 | G114: 24 | H114: 25 | I114: 400 | J114: 0.12 | K114: 4 | L114: -999 | M114: 0 | N114: 100 | O114: 0 | P114: 20 | Q114: 0 | R114: 5 | S114: 30 | T114: 5 | U114: 0.01 | V114: 0.0001666666667 | W114: 5 | X114: 0.01 | Y114: 100 | Z114: 3 | AA114: 20 | AB114: 0.04 | AC114: 0 | AD114: 0 | AE114: 0 | AF114: 0 | AG114: 0.23 | AH114: 38.66
A115: 113 | B115: 2008-05-16 | C115: 13:01:46 | D115: 00:01:52 | E115: 20 | F115: 21 | G115: 24 | H115: 25 | I115: 400 | J115: 0.12 | K115: 4 | L115: -999 | M115: 0 | N115: 100 | O115: 0 | P115: 20 | Q115: 0 | R115: 5 | S115: 30 | T115: 5 | U115: 0.01 | V115: 0.0001666666667 | W115: 5 | X115: 0.01 | Y115: 100 | Z115: 3 | AA115: 20 | AB115: 0.04 | AC115: 0 | AD115: 0 | AE115: 0 | AF115: 0 | AG115: 0.23 | AH115: 38.66
A116: 114 | B116: 2008-05-16 | C116: 13:01:47 | D116: 00:01:53 | E116: 20 | F116: 21 | G116: 24 | H116: 25 | I116: 400 | J116: 0.12 | K116: 4 | L116: -999 | M116: 0 | N116: 100 | O116: 0 | P116: 20 | Q116: 0 | R116: 5 | S116: 30 | T116: 5 | U116: 0.01 | V116: 0.0001666666667 | W116: 5 | X116: 0.01 | Y116: 100 | Z116: 3 | AA116: 20 | AB116: 0.04 | AC116: 0 | AD116: 0 | AE116: 0 | AF116: 0 | AG116: 0.23 | AH116: 38.66
A117: 115 | B117: 2008-05-16 | C117: 13:01:48 | D117: 00:01:54 | E117: 20 | F117: 21 | G117: 24 | H117: 25 | I117: 400 | J117: 0.12 | K117: 4 | L117: -999 | M117: 0 | N117: 100 | O117: 0 | P117: 20 | Q117: 0 | R117: 5 | S117: 30 | T117: 4 | U117: 0.01 | V117: 0.0001666666667 | W117: 5 | X117: 0.01 | Y117: 100 | Z117: 3 | AA117: 20 | AB117: 0.04 | AC117: 0 | AD117: 0 | AE117: 0 | AF117: 0 | AG117: 0.23 | AH117: 38.66
A118: 116 | B118: 2008-05-16 | C118: 13:01:49 | D118: 00:01:55 | E118: 20 | F118: 21 | G118: 24 | H118: 25 | I118: 400 | J118: 0.11 | K118: 4 | L118: -999 | M118: 0 | N118: 100 | O118: 0 | P118: 20 | Q118: 0 | R118: 5 | S118: 30 | T118: 5 | U118: 0.01 | V118: 0.0001666666667 | W118: 5 | X118: 0.01 | Y118: 100 | Z118: 3 | AA118: 20 | AB118: 0.04 | AC118: 0 | AD118: 0 | AE118: 0 | AF118: 0 | AG118: 0.23 | AH118: 38.66
A119: 117 | B119: 2008-05-16 | C119: 13:01:50 | D119: 00:01:56 | E119: 21 | F119: 21 | G119: 24 | H119: 25 | I119: 400 | J119: 0.11 | K119: 4 | L119: -999 | M119: 0 | N119: 100 | O119: 0 | P119: 20 | Q119: 0 | R119: 5 | S119: 30 | T119: 5 | U119: 0.01 | V119: 0.0001666666667 | W119: 5 | X119: 0.01 | Y119: 100 | Z119: 3 | AA119: 20 | AB119: 0.04 | AC119: 0 | AD119: 0 | AE119: 0 | AF119: 0 | AG119: 0.23 | AH119: 38.66
A120: 118 | B120: 2008-05-16 | C120: 13:01:51 | D120: 00:01:57 | E120: 21 | F120: 21 | G120: 24 | H120: 25 | I120: 400 | J120: 0.11 | K120: 4 | L120: -999 | M120: 0 | N120: 100 | O120: 0 | P120: 20 | Q120: 0 | R120: 5 | S120: 30 | T120: 4 | U120: 0.01 | V120: 0.0001666666667 | W120: 5 | X120: 0.01 | Y120: 100 | Z120: 3 | AA120: 20 | AB120: 0.04 | AC120: 0 | AD120: 0 | AE120: 0 | AF120: 0 | AG120: 0.23 | AH120: 38.66
A121: 119 | B121: 2008-05-16 | C121: 13:01:52 | D121: 00:01:58 | E121: 21 | F121: 21 | G121: 24 | H121: 25 | I121: 400 | J121: 0.11 | K121: 4 | L121: -999 | M121: 0 | N121: 100 | O121: 0 | P121: 20 | Q121: 0 | R121: 5 | S121: 30 | T121: 5 | U121: -0.01 | V121: -0.0001666666667 | W121: 5 | X121: 0.01 | Y121: 100 | Z121: 3 | AA121: 20 | AB121: 0.04 | AC121: 0 | AD121: 0 | AE121: 0 | AF121: 0 | AG121: 0.23 | AH121: 38.66
A122: 120 | B122: 2008-05-16 | C122: 13:01:53 | D122: 00:01:59 | E122: 21 | F122: 21 | G122: 24 | H122: 25 | I122: 400 | J122: 0.11 | K122: 4 | L122: -999 | M122: 0 | N122: 100 | O122: 0 | P122: 20 | Q122: 0 | R122: 5 | S122: 30 | T122: 5 | U122: -0.01 | V122: -0.0001666666667 | W122: 5 | X122: 0.01 | Y122: 100 | Z122: 3 | AA122: 20 | AB122: 0.04 | AC122: 0 | AD122: 0 | AE122: 0 | AF122: 0 | AG122: 0.23 | AH122: 38.66
A123: 121 | B123: 2008-05-16 | C123: 13:01:54 | D123: 00:02:00 | E123: 21 | F123: 21 | G123: 24 | H123: 25 | I123: 400 | J123: 0.11 | K123: 4 | L123: -999 | M123: 0 | N123: 100 | O123: 0 | P123: 20 | Q123: 0 | R123: 5 | S123: 30 | T123: 5 | U123: -0.01 | V123: -0.0001666666667 | W123: 5 | X123: 0.01 | Y123: 100 | Z123: 3 | AA123: 20 | AB123: 0.05 | AC123: 0 | AD123: 0 | AE123: 0 | AF123: 0 | AG123: 0.23 | AH123: 38.66
A124: 122 | B124: 2008-05-16 | C124: 13:01:55 | D124: 00:02:01 | E124: 21 | F124: 21 | G124: 24 | H124: 25 | I124: 400 | J124: 0.11 | K124: 4 | L124: -999 | M124: 0 | N124: 100 | O124: 0 | P124: 20 | Q124: 0 | R124: 5 | S124: 30 | T124: 5 | U124: 0 | V124: 0 | W124: 5 | X124: 0.01 | Y124: 100 | Z124: 3 | AA124: 20 | AB124: 0.04 | AC124: 0 | AD124: 0 | AE124: 0 | AF124: 0 | AG124: 0.23 | AH124: 38.66
A125: 123 | B125: 2008-05-16 | C125: 13:01:56 | D125: 00:02:02 | E125: 21 | F125: 21 | G125: 24 | H125: 25 | I125: 400 | J125: 0.11 | K125: 4 | L125: -999 | M125: 0 | N125: 100 | O125: 0 | P125: 20 | Q125: 0 | R125: 5 | S125: 30 | T125: 5 | U125: 0 | V125: 0 | W125: 5 | X125: 0.01 | Y125: 100 | Z125: 3 | AA125: 20 | AB125: 0.05 | AC125: 0 | AD125: 0 | AE125: 0 | AF125: 0 | AG125: 0.23 | AH125: 38.66
A126: 124 | B126: 2008-05-16 | C126: 13:01:57 | D126: 00:02:03 | E126: 21 | F126: 21 | G126: 24 | H126: 25 | I126: 400 | J126: 0.11 | K126: 4 | L126: -999 | M126: 0 | N126: 100 | O126: 0 | P126: 20 | Q126: 0 | R126: 5 | S126: 30 | T126: 5 | U126: 0 | V126: 0 | W126: 5 | X126: 0.01 | Y126: 100 | Z126: 3 | AA126: 20 | AB126: 0.04 | AC126: 0 | AD126: 0 | AE126: 0 | AF126: 0 | AG126: 0.23 | AH126: 38.66
A127: 125 | B127: 2008-05-16 | C127: 13:01:58 | D127: 00:02:04 | E127: 21 | F127: 21 | G127: 24 | H127: 25 | I127: 400 | J127: 0.11 | K127: 4 | L127: -999 | M127: 0 | N127: 100 | O127: 0 | P127: 20 | Q127: 0 | R127: 5 | S127: 30 | T127: 5 | U127: 0 | V127: 0 | W127: 5 | X127: 0.01 | Y127: 100 | Z127: 3 | AA127: 20 | AB127: 0.04 | AC127: 0 | AD127: 0 | AE127: 0 | AF127: 0 | AG127: 0.23 | AH127: 38.66
A128: 126 | B128: 2008-05-16 | C128: 13:01:59 | D128: 00:02:05 | E128: 21 | F128: 22 | G128: 24 | H128: 25 | I128: 400 | J128: 0.11 | K128: 4 | L128: -999 | M128: 0 | N128: 100 | O128: 0 | P128: 20 | Q128: 0 | R128: 5 | S128: 30 | T128: 4 | U128: 0.01 | V128: 0.0001666666667 | W128: 5 | X128: 0.01 | Y128: 100 | Z128: 3 | AA128: 20 | AB128: 0.04 | AC128: 0 | AD128: 0 | AE128: 0 | AF128: 0 | AG128: 0.23 | AH128: 38.66
A129: 127 | B129: 2008-05-16 | C129: 13:02:00 | D129: 00:02:06 | E129: 21 | F129: 22 | G129: 24 | H129: 25 | I129: 400 | J129: 13.3 | K129: 48 | L129: -999 | M129: 46 | N129: 100 | O129: 0 | P129: 20 | Q129: 0 | R129: 5 | S129: 30 | T129: 5 | U129: 0.01 | V129: 0.0001666666667 | W129: 5 | X129: 0.01 | Y129: 100 | Z129: 3 | AA129: 20 | AB129: 0.04 | AC129: 0 | AD129: 0 | AE129: 0 | AF129: 0 | AG129: 0.23 | AH129: 38.66
A130: 128 | B130: 2008-05-16 | C130: 13:02:01 | D130: 00:02:07 | E130: 21 | F130: 22 | G130: 24 | H130: 25 | I130: 400 | J130: 13.3 | K130: 104 | L130: -999 | M130: 117 | N130: 100 | O130: 0 | P130: 20 | Q130: 0 | R130: 5 | S130: 30 | T130: 4 | U130: 0.01 | V130: 0.0001666666667 | W130: 5 | X130: 0.01 | Y130: 100 | Z130: 3 | AA130: 20 | AB130: 0.04 | AC130: 0 | AD130: 0 | AE130: 0 | AF130: 0 | AG130: 0.23 | AH130: 38.66
A131: 129 | B131: 2008-05-16 | C131: 13:02:02 | D131: 00:02:08 | E131: 21 | F131: 22 | G131: 24 | H131: 25 | I131: 400 | J131: 13.3 | K131: 104 | L131: -999 | M131: 201 | N131: 100 | O131: 0 | P131: 20 | Q131: 0 | R131: 5 | S131: 30 | T131: 5 | U131: 0 | V131: 0 | W131: 5 | X131: 0.01 | Y131: 100 | Z131: 3 | AA131: 20 | AB131: 0.04 | AC131: 0 | AD131: 0 | AE131: 0 | AF131: 0 | AG131: 0.23 | AH131: 38.66
A132: 130 | B132: 2008-05-16 | C132: 13:02:03 | D132: 00:02:09 | E132: 21 | F132: 22 | G132: 24 | H132: 25 | I132: 400 | J132: 13.3 | K132: 158 | L132: -999 | M132: 337 | N132: 100 | O132: 0 | P132: 20 | Q132: 0 | R132: 5 | S132: 30 | T132: 5 | U132: 0 | V132: =U132/60 -> 0 | W132: 5 | X132: 0.01 | Y132: 100 | Z132: 3 | AA132: 20 | AB132: 0.04 | AC132: 0 | AD132: 0 | AE132: 0.01 | AF132: 0 | AG132: 0.23 | AH132: 38.66
A133: 131 | B133: 2008-05-16 | C133: 13:02:04 | D133: 00:02:10 | E133: 21 | F133: 22 | G133: 24 | H133: 25 | I133: 400 | J133: 13.3 | K133: 213 | L133: -999 | M133: 462 | N133: 100 | O133: 0 | P133: 20 | Q133: 0 | R133: 5 | S133: 30 | T133: 5 | U133: 0 | V133: 0 | W133: 5 | X133: 0.01 | Y133: 100 | Z133: 3 | AA133: 20 | AB133: 0.04 | AC133: 0 | AD133: 0 | AE133: 0 | AF133: 0 | AG133: 0.23 | AH133: 38.66
A134: 132 | B134: 2008-05-16 | C134: 13:02:05 | D134: 00:02:11 | E134: 21 | F134: 22 | G134: 24 | H134: 25 | I134: 400 | J134: 13.3 | K134: 213 | L134: -999 | M134: 579 | N134: 100 | O134: 0 | P134: 20 | Q134: 0 | R134: 5 | S134: 30 | T134: 5 | U134: 0 | V134: 0 | W134: 5 | X134: 0.01 | Y134: 100 | Z134: 3 | AA134: 20 | AB134: 0.04 | AC134: 0 | AD134: 0 | AE134: 0 | AF134: 0 | AG134: 0.23 | AH134: 38.66
A135: 133 | B135: 2008-05-16 | C135: 13:02:06 | D135: 00:02:12 | E135: 21 | F135: 22 | G135: 24 | H135: 25 | I135: 400 | J135: 13.3 | K135: 269 | L135: -999 | M135: 684 | N135: 100 | O135: 0 | P135: 20 | Q135: 0 | R135: 5 | S135: 30 | T135: 5 | U135: 0 | V135: 0 | W135: 5 | X135: 0.01 | Y135: 100 | Z135: 3 | AA135: 20 | AB135: 0.04 | AC135: 0 | AD135: 0 | AE135: 0 | AF135: 0 | AG135: 0.23 | AH135: 38.66
A136: 134 | B136: 2008-05-16 | C136: 13:02:07 | D136: 00:02:13 | E136: 21 | F136: 22 | G136: 24 | H136: 25 | I136: 400 | J136: 13.3 | K136: 324 | L136: -999 | M136: 768 | N136: 100 | O136: 0 | P136: 20 | Q136: 0 | R136: 5 | S136: 30 | T136: 5 | U136: 0 | V136: 0 | W136: 5 | X136: 0.01 | Y136: 100 | Z136: 3 | AA136: 20 | AB136: 0.04 | AC136: 0 | AD136: 0 | AE136: 0 | AF136: 0 | AG136: 0.23 | AH136: 38.66
A137: 135 | B137: 2008-05-16 | C137: 13:02:08 | D137: 00:02:14 | E137: 21 | F137: 22 | G137: 24 | H137: 25 | I137: 400 | J137: 13.3 | K137: 324 | L137: -999 | M137: 830 | N137: 100 | O137: 0 | P137: 20 | Q137: 0 | R137: 5 | S137: 30 | T137: 5 | U137: 0 | V137: 0 | W137: 5 | X137: 0.01 | Y137: 100 | Z137: 3 | AA137: 20 | AB137: 0.05 | AC137: 0 | AD137: 0 | AE137: 0 | AF137: 0 | AG137: 0.23 | AH137: 38.66
A138: 136 | B138: 2008-05-16 | C138: 13:02:09 | D138: 00:02:15 | E138: 21 | F138: 22 | G138: 24 | H138: 25 | I138: 400 | J138: 13.3 | K138: 379 | L138: -999 | M138: 878 | N138: 100 | O138: 0 | P138: 20 | Q138: 0 | R138: 5 | S138: 30 | T138: 5 | U138: 0.03 | V138: 0.0005 | W138: 5 | X138: 0.01 | Y138: 100 | Z138: 3 | AA138: 20 | AB138: 0.04 | AC138: 0 | AD138: 0 | AE138: 0 | AF138: 0 | AG138: 0.23 | AH138: 38.66
A139: 137 | B139: 2008-05-16 | C139: 13:02:10 | D139: 00:02:16 | E139: 21 | F139: 22 | G139: 24 | H139: 25 | I139: 400 | J139: 13.3 | K139: 435 | L139: -999 | M139: 919 | N139: 100 | O139: 0 | P139: 20 | Q139: 0 | R139: 5 | S139: 30 | T139: 5 | U139: 0.03 | V139: 0.0005 | W139: 5 | X139: 0.01 | Y139: 100 | Z139: 3 | AA139: 20 | AB139: 0.04 | AC139: 0 | AD139: 0 | AE139: 0 | AF139: 0 | AG139: 0.23 | AH139: 38.66
A140: 138 | B140: 2008-05-16 | C140: 13:02:11 | D140: 00:02:17 | E140: 21 | F140: 23 | G140: 24 | H140: 25 | I140: 400 | J140: 13.3 | K140: 490 | L140: -999 | M140: 955 | N140: 100 | O140: 0 | P140: 20 | Q140: 0 | R140: 5 | S140: 30 | T140: 5 | U140: 0.03 | V140: 0.0005 | W140: 5 | X140: 0.01 | Y140: 100 | Z140: 3 | AA140: 20 | AB140: 0.04 | AC140: 0 | AD140: 0 | AE140: 0 | AF140: 0 | AG140: 0.23 | AH140: 38.66
A141: 139 | B141: 2008-05-16 | C141: 13:02:12 | D141: 00:02:18 | E141: 21 | F141: 23 | G141: 24 | H141: 25 | I141: 400 | J141: 13.3 | K141: 490 | L141: -999 | M141: 989 | N141: 100 | O141: 0 | P141: 20 | Q141: 0 | R141: 5 | S141: 30 | T141: 5 | U141: 0 | V141: 0 | W141: 5 | X141: 0.01 | Y141: 100 | Z141: 3 | AA141: 20 | AB141: 0.04 | AC141: 0 | AD141: 0 | AE141: 0 | AF141: 0 | AG141: 0.23 | AH141: 38.66
A142: 140 | B142: 2008-05-16 | C142: 13:02:13 | D142: 00:02:19 | E142: 21 | F142: 23 | G142: 24 | H142: 25 | I142: 400 | J142: 13.3 | K142: 546 | L142: -999 | M142: 1025 | N142: 100 | O142: 0 | P142: 20 | Q142: 0 | R142: 5 | S142: 30 | T142: 5 | U142: 0 | V142: 0 | W142: 5 | X142: 0.01 | Y142: 100 | Z142: 3 | AA142: 20 | AB142: 0.04 | AC142: 0 | AD142: 0 | AE142: 0 | AF142: 0 | AG142: 0.23 | AH142: 38.66
A143: 141 | B143: 2008-05-16 | C143: 13:02:14 | D143: 00:02:20 | E143: 21 | F143: 23 | G143: 24 | H143: 25 | I143: 400 | J143: 13.3 | K143: 601 | L143: -999 | M143: 1058 | N143: 100 | O143: 0 | P143: 20 | Q143: 0 | R143: 5 | S143: 30 | T143: 5 | U143: 0 | V143: 0 | W143: 5 | X143: 0.01 | Y143: 100 | Z143: 3 | AA143: 20 | AB143: 0.04 | AC143: 0 | AD143: 0 | AE143: 0 | AF143: 0 | AG143: 0.23 | AH143: 38.66
A144: 142 | B144: 2008-05-16 | C144: 13:02:15 | D144: 00:02:21 | E144: 21 | F144: 23 | G144: 24 | H144: 25 | I144: 400 | J144: 13.3 | K144: 601 | L144: -999 | M144: 1089 | N144: 100 | O144: 0 | P144: 20 | Q144: 0 | R144: 5 | S144: 30 | T144: 5 | U144: 0 | V144: 0 | W144: 5 | X144: 0.01 | Y144: 100 | Z144: 3 | AA144: 20 | AB144: 0.05 | AC144: 0 | AD144: 0 | AE144: 0 | AF144: 0 | AG144: 0.23 | AH144: 38.66
A145: 143 | B145: 2008-05-16 | C145: 13:02:16 | D145: 00:02:22 | E145: 21 | F145: 23 | G145: 24 | H145: 25 | I145: 400 | J145: 13.3 | K145: 656 | L145: -999 | M145: 1123 | N145: 100 | O145: 0 | P145: 20 | Q145: 0 | R145: 5 | S145: 30 | T145: 5 | U145: 0 | V145: 0 | W145: 5 | X145: 0.01 | Y145: 100 | Z145: 3 | AA145: 20 | AB145: 0.04 | AC145: 0 | AD145: 0 | AE145: 0 | AF145: 0 | AG145: 0.23 | AH145: 38.66
A146: 144 | B146: 2008-05-16 | C146: 13:02:17 | D146: 00:02:23 | E146: 21 | F146: 23 | G146: 24 | H146: 25 | I146: 400 | J146: 13.3 | K146: 710 | L146: -999 | M146: 1158 | N146: 100 | O146: 0 | P146: 20 | Q146: 0 | R146: 5 | S146: 30 | T146: 5 | U146: 0 | V146: 0 | W146: 5 | X146: 0.01 | Y146: 100 | Z146: 3 | AA146: 20 | AB146: 0.04 | AC146: 0 | AD146: 0 | AE146: 0 | AF146: 0 | AG146: 0.23 | AH146: 38.66
A147: 145 | B147: 2008-05-16 | C147: 13:02:18 | D147: 00:02:24 | E147: 21 | F147: 23 | G147: 24 | H147: 25 | I147: 400 | J147: 13.3 | K147: 710 | L147: -999 | M147: 1205 | N147: 100 | O147: 0 | P147: 20 | Q147: 0 | R147: 5 | S147: 30 | T147: 5 | U147: 0 | V147: 0 | W147: 5 | X147: 0.01 | Y147: 100 | Z147: 3 | AA147: 20 | AB147: 0.04 | AC147: 0 | AD147: 0 | AE147: 0 | AF147: 0 | AG147: 0.23 | AH147: 38.66
A148: 146 | B148: 2008-05-16 | C148: 13:02:19 | D148: 00:02:25 | E148: 21 | F148: 23 | G148: 24 | H148: 25 | I148: 400 | J148: 13.3 | K148: 765 | L148: -999 | M148: 1247 | N148: 100 | O148: 0 | P148: 20 | Q148: 0 | R148: 5 | S148: 30 | T148: 5 | U148: 0 | V148: 0 | W148: 5 | X148: 0.01 | Y148: 100 | Z148: 3 | AA148: 20 | AB148: 0.04 | AC148: 0 | AD148: 0 | AE148: 0 | AF148: 0 | AG148: 0.23 | AH148: 38.66
A149: 147 | B149: 2008-05-16 | C149: 13:02:20 | D149: 00:02:26 | E149: 21 | F149: 23 | G149: 24 | H149: 25 | I149: 400 | J149: 13.3 | K149: 820 | L149: -999 | M149: 1302 | N149: 100 | O149: 0 | P149: 20 | Q149: 0 | R149: 5 | S149: 30 | T149: 5 | U149: 0 | V149: 0 | W149: 5 | X149: 0.01 | Y149: 100 | Z149: 3 | AA149: 20 | AB149: 0.05 | AC149: 0 | AD149: 0 | AE149: 0.01 | AF149: 0 | AG149: 0.23 | AH149: 38.66
A150: 148 | B150: 2008-05-16 | C150: 13:02:21 | D150: 00:02:27 | E150: 21 | F150: 23 | G150: 24 | H150: 25 | I150: 400 | J150: 13.3 | K150: 874 | L150: -100 | M150: 1354 | N150: 100 | O150: 0 | P150: 20 | Q150: 0 | R150: 5 | S150: 30 | T150: 4 | U150: 0 | V150: 0 | W150: 5 | X150: 0.01 | Y150: 100 | Z150: 3 | AA150: 20 | AB150: 0.04 | AC150: 0 | AD150: 0 | AE150: 0 | AF150: 0 | AG150: 0.23 | AH150: 38.66
A151: 149 | B151: 2008-05-16 | C151: 13:02:22 | D151: 00:02:28 | E151: 21 | F151: 23 | G151: 24 | H151: 25 | I151: 400 | J151: 13.3 | K151: 874 | L151: -85 | M151: 1415 | N151: 100 | O151: 0 | P151: 20 | Q151: 0 | R151: 5 | S151: 30 | T151: 5 | U151: 0 | V151: 0 | W151: 5 | X151: 0.01 | Y151: 100 | Z151: 3 | AA151: 20 | AB151: 0.04 | AC151: 0 | AD151: 0 | AE151: 0 | AF151: 0 | AG151: 0.23 | AH151: 38.66
A152: 150 | B152: 2008-05-16 | C152: 13:02:23 | D152: 00:02:29 | E152: 21 | F152: 23 | G152: 24 | H152: 25 | I152: 400 | J152: 13.3 | K152: 929 | L152: -49 | M152: 1472 | N152: 100 | O152: 0 | P152: 20 | Q152: 0 | R152: 5 | S152: 30 | T152: 5 | U152: 0 | V152: 0 | W152: 5 | X152: 0.01 | Y152: 100 | Z152: 3 | AA152: 20 | AB152: 0.05 | AC152: 0 | AD152: 0 | AE152: 0 | AF152: 0 | AG152: 0.23 | AH152: 38.66
A153: 151 | B153: 2008-05-16 | C153: 13:02:24 | D153: 00:02:30 | E153: 21 | F153: 24 | G153: 24 | H153: 25 | I153: 400 | J153: 13.3 | K153: 984 | L153: -10 | M153: 1546 | N153: 100 | O153: 0 | P153: 20 | Q153: 0 | R153: 5 | S153: 30 | T153: 5 | U153: 0 | V153: 0 | W153: 5 | X153: 0.01 | Y153: 100 | Z153: 3 | AA153: 20 | AB153: 0.04 | AC153: 0 | AD153: 0 | AE153: 0 | AF153: 0 | AG153: 0.23 | AH153: 38.66
A154: 152 | B154: 2008-05-16 | C154: 13:02:25 | D154: 00:02:31 | E154: 21 | F154: 24 | G154: 24 | H154: 25 | I154: 400 | J154: 13.3 | K154: 984 | L154: 6 | M154: 1687 | N154: 100 | O154: 0 | P154: 20 | Q154: 0 | R154: 5 | S154: 30 | T154: 5 | U154: 0 | V154: 0 | W154: 5 | X154: 0.01 | Y154: 100 | Z154: 3 | AA154: 20 | AB154: 0.04 | AC154: 0 | AD154: 0 | AE154: 0 | AF154: 0 | AG154: 0.23 | AH154: 38.66
A155: 153 | B155: 2008-05-16 | C155: 13:02:26 | D155: 00:02:32 | E155: 22 | F155: 24 | G155: 24 | H155: 25 | I155: 400 | J155: 13.3 | K155: 995 | L155: -2 | M155: 1687 | N155: 100 | O155: 0 | P155: 20 | Q155: 0 | R155: 5 | S155: 30 | T155: 5 | U155: 0 | V155: 0 | W155: 5 | X155: 0.01 | Y155: 100 | Z155: 3 | AA155: 20 | AB155: 0.04 | AC155: 0 | AD155: 0 | AE155: 0 | AF155: 0 | AG155: 0.23 | AH155: 38.66
A156: 154 | B156: 2008-05-16 | C156: 13:02:27 | D156: 00:02:33 | E156: 22 | F156: 24 | G156: 24 | H156: 25 | I156: 400 | J156: 13.3 | K156: 986 | L156: -8 | M156: 1687 | N156: 100 | O156: 0 | P156: 20 | Q156: 0 | R156: 5 | S156: 30 | T156: 5 | U156: 0 | V156: 0 | W156: 5 | X156: 0.01 | Y156: 100 | Z156: 3 | AA156: 20 | AB156: 0.04 | AC156: 0 | AD156: 0 | AE156: 0 | AF156: 0 | AG156: 0.23 | AH156: 38.66
A157: 155 | B157: 2008-05-16 | C157: 13:02:28 | D157: 00:02:34 | E157: 22 | F157: 24 | G157: 24 | H157: 25 | I157: 400 | J157: 13.3 | K157: 986 | L157: -13 | M157: 1687 | N157: 100 | O157: 0 | P157: 20 | Q157: 0 | R157: 5 | S157: 30 | T157: 5 | U157: 0 | V157: 0 | W157: 5 | X157: 0.01 | Y157: 100 | Z157: 3 | AA157: 20 | AB157: 0.04 | AC157: 0 | AD157: 0 | AE157: 0 | AF157: 0 | AG157: 0.23 | AH157: 38.66
A158: 156 | B158: 2008-05-16 | C158: 13:02:29 | D158: 00:02:35 | E158: 22 | F158: 24 | G158: 24 | H158: 25 | I158: 400 | J158: 13.3 | K158: 979 | L158: -13 | M158: 1687 | N158: 100 | O158: 0 | P158: 20 | Q158: 35 | R158: 5 | S158: 30 | T158: 5 | U158: 0.01 | V158: 0.0001666666667 | W158: 5 | X158: 0.01 | Y158: 100 | Z158: 3 | AA158: 450 | AB158: 0.04 | AC158: 20 | AD158: 5 | AE158: 0 | AF158: 0 | AG158: 0.23 | AH158: 38.66
A159: 157 | B159: 2008-05-16 | C159: 13:02:30 | D159: 00:02:36 | E159: 22 | F159: 24 | G159: 24 | H159: 25 | I159: 400 | J159: 13.3 | K159: 974 | L159: -17 | M159: 1687 | N159: 100 | O159: 0 | P159: 21 | Q159: 35 | R159: 5 | S159: 30 | T159: 5 | U159: 0.01 | V159: 0.0001666666667 | W159: 5 | X159: 0.01 | Y159: 100 | Z159: 3 | AA159: 450 | AB159: 0.04 | AC159: 20 | AD159: 5 | AE159: 0 | AF159: 0 | AG159: 0.23 | AH159: 38.66
A160: 158 | B160: 2008-05-16 | C160: 13:02:31 | D160: 00:02:37 | E160: 22 | F160: 24 | G160: 24 | H160: 25 | I160: 400 | J160: 13.3 | K160: 974 | L160: -21 | M160: 1687 | N160: 100 | O160: 0 | P160: 21 | Q160: 35 | R160: 5 | S160: 30 | T160: 5 | U160: 0.01 | V160: 0.0001666666667 | W160: 5 | X160: 0.01 | Y160: 100 | Z160: 3 | AA160: 450 | AB160: 0.05 | AC160: 20 | AD160: 5 | AE160: 0 | AF160: 0 | AG160: 0.23 | AH160: 38.66
A161: 159 | B161: 2008-05-16 | C161: 13:02:32 | D161: 00:02:38 | E161: 22 | F161: 24 | G161: 24 | H161: 25 | I161: 400 | J161: 13.3 | K161: 970 | L161: -23 | M161: 1687 | N161: 100 | O161: 0 | P161: 22 | Q161: 35 | R161: 5 | S161: 30 | T161: 5 | U161: -0.01 | V161: -0.0001666666667 | W161: 5 | X161: 0.01 | Y161: 100 | Z161: 3 | AA161: 450 | AB161: 0.04 | AC161: 20 | AD161: 5 | AE161: 0 | AF161: 0 | AG161: 0.23 | AH161: 38.66
A162: 160 | B162: 2008-05-16 | C162: 13:02:33 | D162: 00:02:39 | E162: 22 | F162: 24 | G162: 24 | H162: 25 | I162: 400 | J162: 13.3 | K162: 966 | L162: -25 | M162: 1687 | N162: 100 | O162: 0 | P162: 22 | Q162: 35 | R162: 5 | S162: 30 | T162: 5 | U162: -0.01 | V162: -0.0001666666667 | W162: 5 | X162: 0.01 | Y162: 100 | Z162: 3 | AA162: 450 | AB162: 0.04 | AC162: 20 | AD162: 5 | AE162: 0 | AF162: 0 | AG162: 0.23 | AH162: 38.66
A163: 161 | B163: 2008-05-16 | C163: 13:02:34 | D163: 00:02:40 | E163: 22 | F163: 24 | G163: 24 | H163: 25 | I163: 400 | J163: 13.3 | K163: 964 | L163: -27 | M163: 1687 | N163: 100 | O163: 0 | P163: 23 | Q163: 35 | R163: 5 | S163: 30 | T163: 5 | U163: -0.01 | V163: -0.0001666666667 | W163: 5 | X163: 0.01 | Y163: 100 | Z163: 3 | AA163: 450 | AB163: 0.04 | AC163: 20 | AD163: 5 | AE163: 0 | AF163: 0 | AG163: 0.23 | AH163: 38.66
A164: 162 | B164: 2008-05-16 | C164: 13:02:35 | D164: 00:02:41 | E164: 22 | F164: 24 | G164: 24 | H164: 25 | I164: 400 | J164: 13.3 | K164: 964 | L164: -29 | M164: 1687 | N164: 100 | O164: 0 | P164: 23 | Q164: 35 | R164: 5 | S164: 30 | T164: 5 | U164: 0 | V164: 0 | W164: 5 | X164: 0.01 | Y164: 100 | Z164: 3 | AA164: 450 | AB164: 0.04 | AC164: 20 | AD164: 5 | AE164: 0 | AF164: 0 | AG164: 0.23 | AH164: 38.66
A165: 163 | B165: 2008-05-16 | C165: 13:02:36 | D165: 00:02:42 | E165: 22 | F165: 24 | G165: 24 | H165: 25 | I165: 400 | J165: 13.3 | K165: 962 | L165: -31 | M165: 1687 | N165: 100 | O165: 0 | P165: 24 | Q165: 35 | R165: 5 | S165: 30 | T165: 5 | U165: 0 | V165: 0 | W165: 5 | X165: 0.01 | Y165: 100 | Z165: 3 | AA165: 450 | AB165: 0.04 | AC165: 20 | AD165: 5 | AE165: 0 | AF165: 0 | AG165: 0.23 | AH165: 38.66
A166: 164 | B166: 2008-05-16 | C166: 13:02:37 | D166: 00:02:43 | E166: 22 | F166: 24 | G166: 24 | H166: 25 | I166: 400 | J166: 13.3 | K166: 960 | L166: -32 | M166: 1687 | N166: 100 | O166: 0 | P166: 24 | Q166: 35 | R166: 6 | S166: 30 | T166: 5 | U166: 0 | V166: 0 | W166: 5 | X166: 0.01 | Y166: 100 | Z166: 3 | AA166: 450 | AB166: 0.04 | AC166: 20 | AD166: 5 | AE166: 0 | AF166: 0 | AG166: 0.23 | AH166: 38.66
A167: 165 | B167: 2008-05-16 | C167: 13:02:38 | D167: 00:02:44 | E167: 22 | F167: 24 | G167: 24 | H167: 25 | I167: 400 | J167: 13.3 | K167: 960 | L167: -33 | M167: 1687 | N167: 100 | O167: 0 | P167: 25 | Q167: 35 | R167: 6 | S167: 30 | T167: 6 | U167: 0 | V167: 0 | W167: 5 | X167: 0.01 | Y167: 100 | Z167: 3 | AA167: 450 | AB167: 0.05 | AC167: 20 | AD167: 5 | AE167: 0 | AF167: 0 | AG167: 0.23 | AH167: 38.66
A168: 166 | B168: 2008-05-16 | C168: 13:02:39 | D168: 00:02:45 | E168: 22 | F168: 24 | G168: 24 | H168: 25 | I168: 400 | J168: 13.3 | K168: 959 | L168: -34 | M168: 1687 | N168: 100 | O168: 0 | P168: 25 | Q168: 35 | R168: 6 | S168: 30 | T168: 5 | U168: 0.01 | V168: 0.0001666666667 | W168: 5 | X168: 0.01 | Y168: 100 | Z168: 3 | AA168: 450 | AB168: 0.04 | AC168: 20 | AD168: 5 | AE168: 0 | AF168: 0 | AG168: 0.23 | AH168: 38.66
A169: 167 | B169: 2008-05-16 | C169: 13:02:40 | D169: 00:02:46 | E169: 22 | F169: 23 | G169: 24 | H169: 25 | I169: 400 | J169: 13.3 | K169: 958 | L169: -34 | M169: 1687 | N169: 100 | O169: 0 | P169: 26 | Q169: 35 | R169: 6 | S169: 30 | T169: 6 | U169: 0.01 | V169: 0.0001666666667 | W169: 5 | X169: 0.01 | Y169: 100 | Z169: 3 | AA169: 450 | AB169: 0.05 | AC169: 20 | AD169: 5 | AE169: 0 | AF169: 0 | AG169: 0.23 | AH169: 38.66
A170: 168 | B170: 2008-05-16 | C170: 13:02:41 | D170: 00:02:47 | E170: 22 | F170: 23 | G170: 24 | H170: 25 | I170: 400 | J170: 13.3 | K170: 958 | L170: -35 | M170: 1687 | N170: 100 | O170: 0 | P170: 26 | Q170: 35 | R170: 6 | S170: 30 | T170: 5 | U170: 0.01 | V170: 0.0001666666667 | W170: 5 | X170: 0.01 | Y170: 100 | Z170: 3 | AA170: 450 | AB170: 0.05 | AC170: 20 | AD170: 5 | AE170: 0.01 | AF170: 0 | AG170: 0.23 | AH170: 38.66
A171: 169 | B171: 2008-05-16 | C171: 13:02:42 | D171: 00:02:48 | E171: 22 | F171: 23 | G171: 24 | H171: 24 | I171: 400 | J171: 13.3 | K171: 957 | L171: -35 | M171: 1687 | N171: 100 | O171: 0 | P171: 27 | Q171: 35 | R171: 6 | S171: 30 | T171: 5 | U171: 0 | V171: 0 | W171: 5 | X171: 0.01 | Y171: 100 | Z171: 3 | AA171: 450 | AB171: 0.04 | AC171: 20 | AD171: 5 | AE171: 0 | AF171: 0 | AG171: 0.23 | AH171: 38.66
A172: 170 | B172: 2008-05-16 | C172: 13:02:43 | D172: 00:02:49 | E172: 22 | F172: 23 | G172: 24 | H172: 25 | I172: 400 | J172: 13.3 | K172: 957 | L172: -36 | M172: 1687 | N172: 100 | O172: 0 | P172: 27 | Q172: 35 | R172: 6 | S172: 30 | T172: 5 | U172: 0 | V172: 0 | W172: 5 | X172: 0.01 | Y172: 100 | Z172: 3 | AA172: 450 | AB172: 0.04 | AC172: 20 | AD172: 5 | AE172: 0 | AF172: 0 | AG172: 0.23 | AH172: 38.66
A173: 171 | B173: 2008-05-16 | C173: 13:02:44 | D173: 00:02:50 | E173: 22 | F173: 23 | G173: 24 | H173: 25 | I173: 400 | J173: 13.3 | K173: 957 | L173: -36 | M173: 1687 | N173: 100 | O173: 0 | P173: 28 | Q173: 35 | R173: 6 | S173: 30 | T173: 6 | U173: 0 | V173: 0 | W173: 5 | X173: 0.01 | Y173: 100 | Z173: 3 | AA173: 450 | AB173: 0.05 | AC173: 20 | AD173: 5 | AE173: 0 | AF173: 0 | AG173: 0.23 | AH173: 38.66
A174: 172 | B174: 2008-05-16 | C174: 13:02:45 | D174: 00:02:51 | E174: 22 | F174: 23 | G174: 24 | H174: 24 | I174: 400 | J174: 13.3 | K174: 956 | L174: -36 | M174: 1687 | N174: 100 | O174: 0 | P174: 28 | Q174: 35 | R174: 6 | S174: 30 | T174: 6 | U174: 0.03 | V174: 0.0005 | W174: 5 | X174: 0.01 | Y174: 100 | Z174: 3 | AA174: 450 | AB174: 0.04 | AC174: 20 | AD174: 5 | AE174: 0 | AF174: 0 | AG174: 0.23 | AH174: 38.66
A175: 173 | B175: 2008-05-16 | C175: 13:02:46 | D175: 00:02:52 | E175: 22 | F175: 23 | G175: 24 | H175: 24 | I175: 400 | J175: 13.3 | K175: 956 | L175: -37 | M175: 1687 | N175: 100 | O175: 0 | P175: 29 | Q175: 35 | R175: 6 | S175: 30 | T175: 5 | U175: 0.03 | V175: 0.0005 | W175: 5 | X175: 0.01 | Y175: 100 | Z175: 3 | AA175: 450 | AB175: 0.04 | AC175: 20 | AD175: 5 | AE175: 0 | AF175: 0 | AG175: 0.23 | AH175: 38.66
A176: 174 | B176: 2008-05-16 | C176: 13:02:47 | D176: 00:02:53 | E176: 21 | F176: 23 | G176: 24 | H176: 24 | I176: 400 | J176: 13.3 | K176: 956 | L176: -37 | M176: 1687 | N176: 100 | O176: 0 | P176: 29 | Q176: 35 | R176: 6 | S176: 30 | T176: 6 | U176: 0.03 | V176: 0.0005 | W176: 5 | X176: 0.01 | Y176: 100 | Z176: 3 | AA176: 450 | AB176: 0.04 | AC176: 20 | AD176: 5 | AE176: 0 | AF176: 0 | AG176: 0.23 | AH176: 38.66
A177: 175 | B177: 2008-05-16 | C177: 13:02:48 | D177: 00:02:54 | E177: 21 | F177: 23 | G177: 24 | H177: 24 | I177: 400 | J177: 13.3 | K177: 956 | L177: -37 | M177: 1687 | N177: 100 | O177: 0 | P177: 29 | Q177: 35 | R177: 6 | S177: 30 | T177: 6 | U177: 0.03 | V177: 0.0005 | W177: 5 | X177: 0.01 | Y177: 100 | Z177: 3 | AA177: 450 | AB177: 0.04 | AC177: 20 | AD177: 5 | AE177: 0 | AF177: 0 | AG177: 0.24 | AH177: 38.67
A178: 176 | B178: 2008-05-16 | C178: 13:02:49 | D178: 00:02:55 | E178: 21 | F178: 23 | G178: 24 | H178: 24 | I178: 400 | J178: 13.3 | K178: 956 | L178: -37 | M178: 1687 | N178: 100 | O178: 0 | P178: 30 | Q178: 35 | R178: 6 | S178: 30 | T178: 6 | U178: 0.1 | V178: 0.001666666667 | W178: 5 | X178: 0.01 | Y178: 100 | Z178: 3 | AA178: 450 | AB178: 0.04 | AC178: 20 | AD178: 5 | AE178: 0 | AF178: 0 | AG178: 0.24 | AH178: 38.67
A179: 177 | B179: 2008-05-16 | C179: 13:02:50 | D179: 00:02:56 | E179: 21 | F179: 23 | G179: 24 | H179: 24 | I179: 400 | J179: 13.3 | K179: 956 | L179: -37 | M179: 1687 | N179: 100 | O179: 0 | P179: 30 | Q179: 35 | R179: 6 | S179: 30 | T179: 7 | U179: 0.1 | V179: 0.001666666667 | W179: 5 | X179: 0.01 | Y179: 100 | Z179: 3 | AA179: 450 | AB179: 0.04 | AC179: 20 | AD179: 5 | AE179: 0 | AF179: 0 | AG179: 0.24 | AH179: 38.67
A180: 178 | B180: 2008-05-16 | C180: 13:02:51 | D180: 00:02:57 | E180: 21 | F180: 23 | G180: 24 | H180: 24 | I180: 400 | J180: 13.3 | K180: 956 | L180: -37 | M180: 1687 | N180: 100 | O180: 0 | P180: 31 | Q180: 35 | R180: 6 | S180: 30 | T180: 6 | U180: 0.1 | V180: 0.001666666667 | W180: 5 | X180: 0.01 | Y180: 100 | Z180: 3 | AA180: 450 | AB180: 0.04 | AC180: 20 | AD180: 5 | AE180: 0 | AF180: 0 | AG180: 0.24 | AH180: 38.67
A181: 179 | B181: 2008-05-16 | C181: 13:02:52 | D181: 00:02:58 | E181: 21 | F181: 23 | G181: 24 | H181: 24 | I181: 400 | J181: 13.3 | K181: 956 | L181: -37 | M181: 1687 | N181: 100 | O181: 0 | P181: 31 | Q181: 35 | R181: 6 | S181: 30 | T181: 6 | U181: 0.11 | V181: 0.001833333333 | W181: 5 | X181: 0.01 | Y181: 100 | Z181: 3 | AA181: 450 | AB181: 0.04 | AC181: 20 | AD181: 5 | AE181: 0 | AF181: 0 | AG181: 0.24 | AH181: 38.67
A182: 180 | B182: 2008-05-16 | C182: 13:02:53 | D182: 00:02:59 | E182: 21 | F182: 23 | G182: 24 | H182: 24 | I182: 400 | J182: 13.3 | K182: 956 | L182: -37 | M182: 1687 | N182: 100 | O182: 0 | P182: 32 | Q182: 35 | R182: 6 | S182: 30 | T182: 6 | U182: 0.11 | V182: 0.001833333333 | W182: 5 | X182: 0.01 | Y182: 100 | Z182: 3 | AA182: 450 | AB182: 0.04 | AC182: 20 | AD182: 5 | AE182: 0 | AF182: 0 | AG182: 0.25 | AH182: 38.68
A183: 181 | B183: 2008-05-16 | C183: 13:02:54 | D183: 00:03:00 | E183: 21 | F183: 23 | G183: 24 | H183: 24 | I183: 400 | J183: 13.3 | K183: 956 | L183: -36 | M183: 1687 | N183: 100 | O183: 0 | P183: 32 | Q183: 35 | R183: 6 | S183: 30 | T183: 6 | U183: 0.11 | V183: 0.001833333333 | W183: 5 | X183: 0.01 | Y183: 100 | Z183: 3 | AA183: 450 | AB183: 0.04 | AC183: 20 | AD183: 5 | AE183: 0 | AF183: 0 | AG183: 0.25 | AH183: 38.68
A184: 182 | B184: 2008-05-16 | C184: 13:02:55 | D184: 00:03:01 | E184: 21 | F184: 23 | G184: 24 | H184: 24 | I184: 400 | J184: 13.3 | K184: 956 | L184: -35 | M184: 1678 | N184: 100 | O184: 0 | P184: 33 | Q184: 35 | R184: 7 | S184: 30 | T184: 7 | U184: 0.11 | V184: 0.001833333333 | W184: 5 | X184: 0.01 | Y184: 100 | Z184: 3 | AA184: 450 | AB184: 0.04 | AC184: 20 | AD184: 5 | AE184: 0 | AF184: 0 | AG184: 0.25 | AH184: 38.68
A185: 183 | B185: 2008-05-16 | C185: 13:02:56 | D185: 00:03:02 | E185: 21 | F185: 23 | G185: 24 | H185: 24 | I185: 400 | J185: 13.3 | K185: 963 | L185: -30 | M185: 1687 | N185: 100 | O185: 0 | P185: 33 | Q185: 35 | R185: 7 | S185: 30 | T185: 7 | U185: 0.14 | V185: 0.002333333333 | W185: 5 | X185: 0.01 | Y185: 100 | Z185: 3 | AA185: 450 | AB185: 0.04 | AC185: 20 | AD185: 5 | AE185: 0 | AF185: 0 | AG185: 0.25 | AH185: 38.68
A186: 184 | B186: 2008-05-16 | C186: 13:02:57 | D186: 00:03:03 | E186: 21 | F186: 23 | G186: 24 | H186: 24 | I186: 400 | J186: 13.3 | K186: 963 | L186: -26 | M186: 1687 | N186: 100 | O186: 0 | P186: 34 | Q186: 35 | R186: 7 | S186: 30 | T186: 6 | U186: 0.14 | V186: 0.002333333333 | W186: 5 | X186: 0.01 | Y186: 100 | Z186: 3 | AA186: 450 | AB186: 0.04 | AC186: 20 | AD186: 5 | AE186: 0 | AF186: 0 | AG186: 0.26 | AH186: 38.69
A187: 185 | B187: 2008-05-16 | C187: 13:02:58 | D187: 00:03:04 | E187: 21 | F187: 23 | G187: 24 | H187: 24 | I187: 400 | J187: 13.3 | K187: 969 | L187: -22 | M187: 1687 | N187: 100 | O187: 0 | P187: 34 | Q187: 35 | R187: 7 | S187: 30 | T187: 7 | U187: 0.14 | V187: 0.002333333333 | W187: 5 | X187: 0.01 | Y187: 100 | Z187: 3 | AA187: 450 | AB187: 0.04 | AC187: 20 | AD187: 5 | AE187: 0 | AF187: 0 | AG187: 0.26 | AH187: 38.69
A188: 186 | B188: 2008-05-16 | C188: 13:02:59 | D188: 00:03:05 | E188: 21 | F188: 23 | G188: 24 | H188: 24 | I188: 400 | J188: 13.3 | K188: 974 | L188: -18 | M188: 1687 | N188: 100 | O188: 0 | P188: 35 | Q188: 35 | R188: 7 | S188: 30 | T188: 7 | U188: 0.25 | V188: 0.004166666667 | W188: 5 | X188: 0.01 | Y188: 100 | Z188: 3 | AA188: 450 | AB188: 0.04 | AC188: 20 | AD188: 5 | AE188: 0 | AF188: 0 | AG188: 0.26 | AH188: 38.69
A189: 187 | B189: 2008-05-16 | C189: 13:03:00 | D189: 00:03:06 | E189: 21 | F189: 23 | G189: 24 | H189: 24 | I189: 400 | J189: 13.3 | K189: 979 | L189: -15 | M189: 1687 | N189: 100 | O189: 0 | P189: 35 | Q189: 35 | R189: 7 | S189: 30 | T189: 7 | U189: 0.25 | V189: 0.004166666667 | W189: 5 | X189: 0.01 | Y189: 100 | Z189: 3 | AA189: 450 | AB189: 0.05 | AC189: 20 | AD189: 5 | AE189: 0 | AF189: 0 | AG189: 0.27 | AH189: 38.7
A190: 188 | B190: 2008-05-16 | C190: 13:03:01 | D190: 00:03:07 | E190: 21 | F190: 23 | G190: 24 | H190: 24 | I190: 400 | J190: 13.3 | K190: 979 | L190: -12 | M190: 1687 | N190: 100 | O190: 0 | P190: 36 | Q190: 35 | R190: 7 | S190: 30 | T190: 7 | U190: 0.25 | V190: 0.004166666667 | W190: 5 | X190: 0.01 | Y190: 100 | Z190: 3 | AA190: 450 | AB190: 0.04 | AC190: 20 | AD190: 5 | AE190: 0 | AF190: 0 | AG190: 0.27 | AH190: 38.7
A191: 189 | B191: 2008-05-16 | C191: 13:03:02 | D191: 00:03:08 | E191: 21 | F191: 23 | G191: 24 | H191: 24 | I191: 400 | J191: 13.3 | K191: 984 | L191: -8 | M191: 1687 | N191: 100 | O191: 0 | P191: 36 | Q191: 35 | R191: 7 | S191: 30 | T191: 6 | U191: 0.05 | V191: 0.0008333333333 | W191: 5 | X191: 0.01 | Y191: 100 | Z191: 3 | AA191: 450 | AB191: 0.04 | AC191: 20 | AD191: 5 | AE191: 0 | AF191: 0 | AG191: 0.27 | AH191: 38.7
A192: 190 | B192: 2008-05-16 | C192: 13:03:03 | D192: 00:03:09 | E192: 21 | F192: 23 | G192: 24 | H192: 24 | I192: 400 | J192: 13.3 | K192: 989 | L192: -5 | M192: 1687 | N192: 100 | O192: 0 | P192: 37 | Q192: 35 | R192: 7 | S192: 30 | T192: 7 | U192: 0.05 | V192: 0.0008333333333 | W192: 5 | X192: 0.01 | Y192: 100 | Z192: 3 | AA192: 450 | AB192: 0.04 | AC192: 20 | AD192: 5 | AE192: 0 | AF192: 0 | AG192: 0.27 | AH192: 38.7
A193: 191 | B193: 2008-05-16 | C193: 13:03:04 | D193: 00:03:10 | E193: 21 | F193: 23 | G193: 24 | H193: 24 | I193: 400 | J193: 13.3 | K193: 989 | L193: -2 | M193: 1687 | N193: 100 | O193: 0 | P193: 37 | Q193: 35 | R193: 7 | S193: 30 | T193: 6 | U193: 0.05 | V193: 0.0008333333333 | W193: 5 | X193: 0.01 | Y193: 100 | Z193: 3 | AA193: 450 | AB193: 0.04 | AC193: 20 | AD193: 5 | AE193: 0 | AF193: 0 | AG193: 0.28 | AH193: 38.71
A194: 192 | B194: 2008-05-16 | C194: 13:03:05 | D194: 00:03:11 | E194: 21 | F194: 23 | G194: 24 | H194: 24 | I194: 400 | J194: 13.3 | K194: 993 | L194: 1 | M194: 1687 | N194: 100 | O194: 0 | P194: 38 | Q194: 35 | R194: 7 | S194: 30 | T194: 7 | U194: 0.05 | V194: 0.0008333333333 | W194: 5 | X194: 0.01 | Y194: 100 | Z194: 3 | AA194: 450 | AB194: 0.04 | AC194: 20 | AD194: 5 | AE194: 0 | AF194: 0 | AG194: 0.28 | AH194: 38.71
A195: 193 | B195: 2008-05-16 | C195: 13:03:06 | D195: 00:03:12 | E195: 21 | F195: 22 | G195: 24 | H195: 24 | I195: 400 | J195: 13.3 | K195: 998 | L195: 4 | M195: 1687 | N195: 100 | O195: 0 | P195: 38 | Q195: 35 | R195: 7 | S195: 30 | T195: 7 | U195: 0.3 | V195: 0.005 | W195: 5 | X195: 0.01 | Y195: 100 | Z195: 3 | AA195: 450 | AB195: 0.04 | AC195: 20 | AD195: 5 | AE195: 0 | AF195: 0 | AG195: 0.28 | AH195: 38.71
A196: 194 | B196: 2008-05-16 | C196: 13:03:07 | D196: 00:03:13 | E196: 21 | F196: 22 | G196: 24 | H196: 24 | I196: 400 | J196: 13.3 | K196: 998 | L196: 7 | M196: 1687 | N196: 100 | O196: 0 | P196: 39 | Q196: 35 | R196: 7 | S196: 30 | T196: 7 | U196: 0.3 | V196: =U196/60 -> 0.005 | W196: 5 | X196: 0.01 | Y196: 100 | Z196: 3 | AA196: 450 | AB196: 0.04 | AC196: 20 | AD196: 5 | AE196: 0 | AF196: 0 | AG196: 0.29 | AH196: 38.72
A197: 195 | B197: 2008-05-16 | C197: 13:03:08 | D197: 00:03:14 | E197: 21 | F197: 22 | G197: 24 | H197: 24 | I197: 400 | J197: 13.3 | K197: 998 | L197: 4 | M197: 1687 | N197: 100 | O197: 0 | P197: 39 | Q197: 35 | R197: 7 | S197: 30 | T197: 7 | U197: 0.3 | V197: 0.005 | W197: 5 | X197: 0.01 | Y197: 100 | Z197: 3 | AA197: 450 | AB197: 0.04 | AC197: 20 | AD197: 5 | AE197: 0 | AF197: 0 | AG197: 0.29 | AH197: 38.72
A198: 196 | B198: 2008-05-16 | C198: 13:03:09 | D198: 00:03:15 | E198: 21 | F198: 22 | G198: 24 | H198: 24 | I198: 400 | J198: 13.3 | K198: 994 | L198: 2 | M198: 1687 | N198: 100 | O198: 0 | P198: 39 | Q198: 35 | R198: 7 | S198: 30 | T198: 8 | U198: 0.18 | V198: 0.003 | W198: 5 | X198: 0.01 | Y198: 100 | Z198: 3 | AA198: 450 | AB198: 0.04 | AC198: 20 | AD198: 5 | AE198: 0 | AF198: 0 | AG198: 0.3 | AH198: 38.73
A199: 197 | B199: 2008-05-16 | C199: 13:03:10 | D199: 00:03:16 | E199: 21 | F199: 22 | G199: 24 | H199: 24 | I199: 400 | J199: 13.3 | K199: 994 | L199: 7 | M199: 1687 | N199: 100 | O199: 0 | P199: 40 | Q199: 35 | R199: 7 | S199: 30 | T199: 7 | U199: 0.18 | V199: 0.003 | W199: 5 | X199: 0.01 | Y199: 100 | Z199: 3 | AA199: 450 | AB199: 0.04 | AC199: 20 | AD199: 5 | AE199: 0 | AF199: 0 | AG199: 0.3 | AH199: 38.73
A200: 198 | B200: 2008-05-16 | C200: 13:03:11 | D200: 00:03:17 | E200: 21 | F200: 22 | G200: 24 | H200: 24 | I200: 400 | J200: 13.3 | K200: 999 | L200: 7 | M200: 1687 | N200: 100 | O200: 0 | P200: 40 | Q200: 35 | R200: 7 | S200: 30 | T200: 8 | U200: 0.18 | V200: 0.003 | W200: 5 | X200: 0.01 | Y200: 100 | Z200: 3 | AA200: 450 | AB200: 0.04 | AC200: 20 | AD200: 5 | AE200: 0 | AF200: 0 | AG200: 0.3 | AH200: 38.73
... 1993 more rows
